Cogmind - Beta 16 @@@ ROGUE MODE // 2025.11.24 @ 22:47:38 Player: Darcyisverycute Result: Establishing 0b11! Performance ------------- Evolutions (9) 4500 Regions Visited (29) 5800 Robots Destroyed (1511) 7555 Value Destroyed (91334) 91334 Prototype IDs (399) 7980 Alien Tech Used (10) 2000 Bonus (127835) 127835 TOTAL SCORE: 247004 Bonus ------- Triggered High Security 2000 High Alert Combat Kills 66788 Follower Combat Kills 7481 Aligned with FarCom 300 MAIN.C Attacked Warlord 500 Warlord Defense Kills 6032 Scanned by Researcher 500 Recovered Sigix Corpse 2000 Destroyed MAIN.C Guards 500 Met MAIN.C 5000 Destroyed MAIN.C Shell 5000 Destroyed MAIN.C 10000 Met Architect 300 Destroyed A8 300 Destroyed A6 400 Destroyed A5 500 Destroyed A4 700 Destroyed A3 800 Destroyed A2 1000 Destroyed Architect 15000 Win 3000 Friendly Fire -266 Cogmind --------- Core Integrity 357/1600 Matter 300/300 Energy 968/990 System Corruption 4% Temperature Cool (11) Movement Walking (112) Location 0b11 Command Parts ------- > --- POWER (4) -------- Quantum Reactor (fused) Quantum Reactor Improved Quantum Reactor Zero-point Reactor > --- PROPULSION (8) --- Enhanced Flexi-carbon Leg Centrium Leg Centrium Leg Centrium Leg Centrium Leg High-density Centrium Leg Experimental Biometal Leg Experimental Biometal Leg > --- UTILITY (10) ----- Desublimator Desublimator Concept Thermoelectric Network Concept Antigrav Storage Unit Concept Weapon Articulator Concept Core Analysis Suite Graphene Brace Remote Force Field Quantum Router Quantum Router > --- WEAPON (4) ------- Enhanced Force Rifle Gatling Beam A3's Sniper Rifle Concept Tactical Fusion Warhead > --- INVENTORY (25) --- Enhanced Armored Heavy Treads Enhanced Flexi-carbon Leg Enhanced Flexi-carbon Leg Concept Phasing Heat Sink Advanced Energy Well (500) Experimental Energy Well (600) Advanced Particle Charger Experimental Kinecellerator Mini Quantum Capacitor Experimental Weapon Cycler Layered Medium Armor Plating Layered Medium Armor Plating Experimental Thermal Shield Concept Impact Drone Bay (2/6) Heavy Neutron Cannon Helical Railgun Perforator Compact Tesla Bomb Launcher Concept EMP Blanket Launcher Concept Rapid Grenade Launcher Sigix Corpse Peak State ------------ > --- POWER ------------ Zero-point Reactor Singularity Reactor > --- PROPULSION ------- Improved Thunder Leg Centrium Leg Centrium Leg Centrium Leg High-density Centrium Leg Experimental Biometal Leg Experimental Biometal Leg > --- UTILITY ---------- Concept Thermoelectric Network Concept Antigrav Storage Unit Experimental Optical Array Concept Weapon Articulator Concept Core Analysis Suite Mini Quantum Capacitor Experimental Reaction Control System Experimental Phase Shifter Concept Impact Drone Bay Concept Impact Drone Bay > --- WEAPON ----------- Concept Plasma Driver Hypervelocity Multirail Perforator > --- INVENTORY -------- Zero-point Reactor Centrium Leg Heavy Shield Leg Concept Phasing Heat Sink Experimental Energy Well Concept NT7 Matterbank Advanced Particle Charger Experimental Kinecellerator Experimental Weapon Cycler Centrium Heavy Armor Plating Graphene Brace Advanced Focal Shield Experimental Force Field Long-range Tractor Beam Concept Plasma Driver Helical Railgun Multirail Multirail Multirail Multirail Concept EMP Blanket Launcher Concept Rapid Grenade Launcher Concept Tactical Fusion Warhead [Rating: 295] Favorites ----------- Power Reinforced Quantum Reactor Engine Improved Deuterium Engine Power Core Concept Zero-point Core Reactor Reinforced Quantum Reactor Propulsion Light Treads Treads Light Treads Leg Centrium Leg Wheel Wheel Hover Unit Combat Linear Gravjet Flight Unit Cooled Nuclear Pulse Thruster Utility Experimental Core Analyzer Device Concept Phasing Heat Sink Storage Concept Antigrav Storage Unit Processor Experimental Core Analyzer Hackware Quantum Router Protection Improved Medium Armor Plating Weapon Advanced Assault Cannon Energy Gun Gatling Beam Energy Cannon Cooled Directed Potential Cannon Ballistic Gun Enhanced Autogun Ballistic Cannon Advanced Assault Cannon Launcher Concept Tactical Fusion Warhead Special Weapon Plasma Cutter Impact Weapon Core Stripper Slashing Weapon DM-GVY's Chainsaw Piercing Weapon Plasma Lance Special Melee Weapon Advanced Datajack Build | -11 -10 -10 -9 -9 -9 -8 -8 -7 -7 -7 -7 -5 -5 -5 -5 -4 -4 -4 -4 -4 -4 -3 -3 -3 -2 -2 -1 -1 -1 ------- Run | Yrd Mat Min Mat Min Exi Min Mat Fac Sto Rec Scr Fac Upp Upp War Pro Fac Was Fac Arm Lab Res Qua Frg Res Tes Acc Com Ac0 Slots Evolved 18 | . . . 2 . . . 2 2 . . . 4 . . . . 2 . . . . 2 . . 2 . 2 . . Power 3 | . . . . . . . . . . . . 1 . . . . . . . . . . . . 2 . . . . Propulsion 5 | . . . 1 . . . . . . . . 2 . . . . 1 . . . . 1 . . . . . . . Utility 8 | . . . . . . . 2 2 . . . . . . . . 1 . . . . 1 . . . . 2 . . Weapon 2 | . . . 1 . . . . . . . . 1 . . . . . . . . . . . . . . . . . Parts Attached 543 | 7 9 4 13 1 21 5 12 12 9 2 44 6 1 4 40 1 27 2 7 37 . 35 21 57 13 7 43 66 37 Power 66 | 1 1 . 1 . 1 . . . . . 5 2 . . 5 . 4 . 2 6 . 9 2 5 3 . 9 7 3 Engine 9 | 1 1 . 1 . . . . . . . 3 . . . 1 . 2 . . . . . . . . . . . . Core 13 | . . . . . 1 . . . . . 1 1 . . 3 . 2 . . 2 . 1 . 2 . . . . . Reactor 44 | . . . . . . . . . . . 1 1 . . 1 . . . 2 4 . 8 2 3 3 . 9 7 3 Propulsion 118 | 2 2 1 5 . 6 4 1 2 4 . 7 2 . . 15 . 7 . 1 12 . 1 4 9 . 1 14 13 5 Treads 28 | 2 1 . 2 . 3 2 1 1 4 . 4 . . . 3 . . . . . . . . . . . 1 4 . Leg 48 | . . . . . 2 1 . . . . 3 2 . . 8 . . . . . . . . 4 . 1 13 9 5 Wheel 11 | . 1 1 3 . 1 . . 1 . . . . . . . . 3 . 1 . . . . . . . . . . Hover 22 | . . . . . . . . . . . . . . . 2 . 3 . . 7 . 1 4 5 . . . . . Flight 9 | . . . . . . 1 . . . . . . . . 2 . 1 . . 5 . . . . . . . . . Utility 209 | 2 3 2 1 . 9 . 3 8 4 1 18 2 1 3 6 . 12 2 2 12 . 18 11 25 6 2 15 26 15 Device 127 | 1 1 2 . . 6 . 1 . . 1 11 2 1 2 4 . 6 1 2 9 . 10 7 18 4 2 12 14 10 Storage 16 | 1 1 . . . . . . . . . 2 . . 1 . . 1 1 . 1 . 2 . 1 . . . 5 . Processor 26 | . . . . . 1 . 1 3 2 . 3 . . . 1 . 2 . . . . 2 1 3 2 . 1 4 . Hackware 5 | . . . . . . . . 1 . . . . . . . . . . . 1 . 1 . . . . . . 2 Protection 35 | . 1 . 1 . 2 . 1 4 2 . 2 . . . 1 . 3 . . 1 . 3 3 3 . . 2 3 3 Artifact . | . . . . . . . . . . . . . . . . . . . . . . . . . . . . . . Weapon 150 | 2 3 1 6 1 5 1 8 2 1 1 14 . . 1 14 1 4 . 2 7 . 7 4 18 4 4 5 20 14 Energy Gun 9 | . . . . . 1 . . . . . 1 . . . . . . . . . . . . 3 . . . . 4 Energy Cannon 22 | . . . . . . . . . . . . . . . 2 1 . . 1 5 . . 1 5 1 2 . . 4 Ballistic Gun 61 | 2 1 1 5 1 3 1 4 1 1 1 5 . . . 8 . 4 . 1 1 . 2 . 1 1 2 2 12 1 Ballistic Cannon 18 | . . . . . . . 4 1 . . . . . 1 1 . . . . . . . . 2 . . . 5 4 Launcher 25 | . 1 . 1 . 1 . . . . . 1 . . . 1 . . . . 1 . 4 1 6 2 . 3 2 1 Special Weapon 7 | . 1 . . . . . . . . . 4 . . . 1 . . . . . . 1 . . . . . . . Impact Weapon 1 | . . . . . . . . . . . . . . . . . . . . . . . 1 . . . . . . Slashing Weapon 5 | . . . . . . . . . . . 3 . . . . . . . . . . . 1 1 . . . . . Piercing Weapon 1 | . . . . . . . . . . . . . . . 1 . . . . . . . . . . . . . . Special Melee Weapon 1 | . . . . . . . . . . . . . . . . . . . . . . . . . . . . 1 . Unidentified Prototypes 93 | . . 1 2 . 7 1 . . 2 . 4 1 . . 13 . . 1 . 2 . 4 11 14 2 6 8 5 9 Corrupted Parts 16 | . . . . . 1 . . . . . . . . . . . . . . 1 . . . . . . . 13 1 System Corruption 118 | . . . . . 4 . . . . . . . . . . . . . . 4 . . . . . . . 107 3 Parts Lost 111 | . 3 1 4 . 8 1 . . 1 . 6 . . 1 23 . 3 1 6 5 . 9 3 3 5 4 3 5 16 Power 22 | . 1 . . . 1 . . . . . . . . . 2 . 2 . 1 2 . 4 1 . 2 2 . 2 2 Propulsion 24 | . 2 1 3 . 3 . . . . . 2 . . . 7 . . . 3 . . . . . . 1 . 1 1 Utility 28 | . . . . . 1 . . . . . 1 . . 1 8 . 1 . 1 2 . 1 . 3 1 1 2 1 4 Weapon 37 | . . . 1 . 3 1 . . 1 . 3 . . . 6 . . 1 1 1 . 4 2 . 2 . 1 1 9 Highest Loss Streak 10 | . 3 1 2 . 7 1 . . 1 . 5 . . 1 10 . 2 1 5 3 . 3 2 1 3 3 2 1 6 To Critical Strikes 5 | . . . . . 3 . . . . . . . . . 1 . . . . . . . . . 1 . . . . Average Backups 17 | 1 19 24 24 24 16 8 16 17 17 17 12 16 16 15 14 4 7 9 8 10 20 18 18 20 20 22 23 19 21 Power . | . . . . . . . . . . . . . . . . 2 1 1 1 . . . . 1 . . . 1 . Propulsion 1 | . . . . 1 1 . 1 1 1 3 1 . . . . . . . . 1 2 2 2 1 . . . 1 2 Utility 8 | . 12 14 16 16 10 6 11 11 10 9 6 11 12 12 9 1 4 4 5 5 8 8 6 10 12 14 12 8 10 Weapon 5 | . 5 8 7 6 3 2 4 4 5 5 3 3 2 2 3 1 1 2 2 3 10 6 6 5 6 6 7 6 6 Tool/Special . | . . . . . . . . . . . . . . . . . . . . . . . . . . . . . . Unused Backups 567 | . 9 3 9 2 10 1 3 2 . 1 408 2 . . 5 . 3 . 1 5 . 1 2 18 . 3 2 65 12 Power 110 | . 1 . . . 4 . . . . . 51 . . . . . . . 1 1 . . . 1 . 1 . 50 . Propulsion 98 | . . . . . . . . . . . 86 . . . 1 . 1 . . 1 . . . 6 . . . . 3 Utility 240 | . 7 1 2 2 6 . 3 2 . 1 182 1 . . 3 . 1 . . 2 . 1 1 7 . 2 1 9 6 Weapon 115 | . . 2 7 . . . . . . . 89 1 . . 1 . 1 . . 1 . . 1 2 . . 1 6 3 Tool/Special 4 | . 1 . . . . 1 . . . . . . . . . . . . . . . . . 2 . . . . . Average Slot Usage (%) 91 | . 90 100 83 97 91 59 99 98 99 100 97 98 99 84 85 29 78 85 89 89 89 94 88 85 76 81 83 86 95 Engine 3 | . 8 14 11 11 3 . . . . . 6 . . . . . 2 . . . . . . . . . . . . Core 1 | . . . . . 6 3 9 6 6 7 . 1 . . 4 . 4 5 3 1 . 1 . 3 7 7 4 . . Reactor 5 | . . . . . . . . . . . . 7 11 7 3 . . . 4 7 10 6 6 3 6 7 11 11 13 Treads 11 | . 21 14 10 11 20 26 27 22 23 23 22 . . . 1 . . . . . . . . . . . . 1 . Leg 8 | . . . . . 3 . . . . . . 28 29 23 18 . . . . . . . . 1 13 12 18 18 29 Hover 1 | . . . . . . . . . . . . . . . 1 5 9 15 13 21 31 32 33 27 . . . . . Device 16 | . 11 13 10 11 4 5 13 13 9 7 10 10 10 7 12 . 8 15 15 21 26 20 20 16 19 20 27 24 25 Storage 6 | . 14 14 11 11 9 4 9 7 7 7 6 5 5 7 6 . 3 9 9 5 5 5 4 4 4 4 4 4 3 Processor 14 | . . . . . 7 . 7 22 19 15 23 17 17 14 10 5 10 10 10 6 5 5 7 9 10 8 8 11 3 Protection 1 | . 2 . . . . . 6 . 7 15 1 . . 1 1 . 7 . . . . . 3 2 . . . . 1 Energy Cannon 1 | . . . . . . . . . . . . . . . 1 . . . 4 6 5 8 6 3 3 7 4 1 1 Ballistic Gun 8 | . 24 14 15 19 24 17 10 20 21 18 11 17 16 14 15 3 8 11 10 10 5 3 . . . 3 . 6 2 Ballistic Cannon 2 | . . . . . . . 16 2 1 3 4 . . . 2 . . . . . . . . . 1 . . 1 . Launcher 2 | . 2 14 10 11 3 . . . . . . . 1 . . . . . . . . . . . . . 3 5 1 Slashing Weapon 1 | . . . . . . . . . . . 3 4 3 2 . . . . . . . . 2 7 5 4 . . . Peak Build Rating 295 | 7 10 16 19 19 47 46 52 60 76 75 97 124 119 118 120 37 103 101 114 147 138 177 201 263 283 277 283 289 295 Average Rating 144 | 5 8 10 15 18 28 19 46 49 59 67 59 120 115 89 90 35 77 87 95 122 138 155 164 223 266 269 274 257 278 On Entrance 102 | . 7 10 11 17 19 40 46 43 54 63 64 96 112 113 78 35 35 95 92 82 138 138 149 201 260 267 242 275 289 Avg Prop Armor Cover (%) 9 | . 12 11 10 9 8 34 . . 5 . 7 . . . 5 11 6 7 5 4 . 7 2 . 4 . 1 15 . Naked Turns . | . . . . . . . . . . . . . . . . . . . . . . . . . . . . . . Heaviest Build 200 | 13 88 88 103 97 112 115 129 124 128 132 127 125 94 95 113 10 76 68 74 111 94 127 111 120 143 145 182 200 194 Greatest Support 236 | 40 40 10 26 20 60 60 60 68 68 68 78 95 95 95 105 12 48 48 48 84 84 106 111 184 184 184 210 225 236 Greatest Overweight (x) 37 | . 8 8 9 4 8 1 2 11 2 1 37 1 . 1 4 . 3 1 2 2 1 2 1 19 . . 1 5 1 Average Overweight (x) . | . 4 8 3 4 1 . 1 1 1 1 . . . . . . . . 1 . 1 . . . . . . . . Largest Inventory Capacity 35 | 8 25 25 25 25 25 25 25 25 25 25 35 25 20 20 20 5 10 10 10 20 20 20 20 25 25 25 25 25 25 Average Capacity 23 | 7 22 25 25 25 21 12 25 25 25 25 22 21 20 19 19 5 8 10 10 11 20 20 20 23 25 25 25 25 25 Most Carried 25 | 4 25 25 25 25 25 25 25 25 25 25 25 24 20 20 20 5 10 10 10 20 20 20 20 25 25 25 25 25 25 Average Carried 18 | 1 19 24 24 24 20 11 24 24 24 24 14 20 19 18 18 5 8 9 9 10 20 19 19 22 22 24 24 19 24 Final Capacity 25 | 8 25 25 25 25 25 25 25 25 25 25 25 20 20 20 5 5 10 10 10 20 20 20 20 25 25 25 25 25 25 Final Carried 25 | 4 25 25 25 25 25 24 25 24 25 25 25 20 20 20 5 5 10 10 10 20 20 20 20 25 25 25 25 25 23 Class Distribution -------------------- 29% | Generator-Gunner 27% | Scavenger-Gunner 16% | Scavenger-Mutant 7% | Scavenger-Assassin 5% | Mutant Dominant Class ---------------- Mutant | -10/Materials Scavenger-Mutant | -10/Mines Mutant | -9/Materials Gunner | -9/Mines Scavenger-Gunner | -9/Exiles Mutant | -8/Mines Scavenger-Gunner | -8/Materials Scavenger-Skirmisher | -7/Factory Scavenger-Skirmisher | -7/Storage Scavenger-Gunner | -7/Recycling Scavenger-Gunner | -7/Scraptown Scavenger-Gunner | -5/Factory Scavenger-Gunner | -5/Upper Caves Scavenger-Gunner | -5/Upper Caves Scavenger-Gunner | -5/Warlord Sprinter | -4/Proximity Caves Scavenger-Tank | -4/Factory Scavenger-Mutant | -4/Waste Scavenger-Skirmisher | -4/Factory Scavenger-Skirmisher | -4/Armory Scavenger-Skirmisher | -4/Lab Scavenger-Scout | -3/Research Assassin | -3/Quarantine Scout | -3/Protoforge Generator-Assassin | -2/Research Generator-Tank | -2/Testing Generator-Gunner | -1/Access Generator-Gunner | -1/Command Scavenger-Gunner | -1/Access_0 Resources | -11 -10 -10 -9 -9 -9 -8 -8 -7 -7 -7 -7 -5 -5 -5 -5 -4 -4 -4 -4 -4 -4 -3 -3 -3 -2 -2 -1 -1 -1 ----------- Run | Yrd Mat Min Mat Min Exi Min Mat Fac Sto Rec Scr Fac Upp Upp War Pro Fac Was Fac Arm Lab Res Qua Frg Res Tes Acc Com Ac0 Matter Collected 59407 | 263 1095 385 904 47 1818 464 467 617 1478 742 3911 434 384 464 2766 35 428 . 165 2434 . 2077 619 4963 2894 1351 8119 16982 3101 Remotely 13971 | . 292 126 536 . . . . . . . 991 . . . . . . . . . . 485 75 171 . . 5150 4434 1711 Salvage Created 84829 | 157 889 203 1158 135 662 257 334 525 1785 824 1814 633 434 222 3571 . 908 . 165 1276 . 2586 721 7663 8798 3522 12983 29169 3435 Parts 3307 | 12 72 23 73 10 81 23 19 29 95 49 77 20 18 11 102 . 42 . 6 67 . 135 26 309 329 125 438 917 199 Haulers Intercepted 15 | . 2 . 4 . . . . . 4 . . 1 . . . . 1 . . . . 2 . . 1 . . . . Recyclers Shooed 24 | . . . 2 . . 4 1 1 3 2 . . . . . . 5 . . . . 2 . . 2 . . 2 . Parts Field Recycled 504 | . . . . . . . . . . . . . . . . . . . . . . . . . . . . 504 . Retrieved Matter 7375 | . . . . . . . . . . . . . . . . . . . . . . . . . . . . 7375 . Parts Self-Destructed 44 | . . . . . . . . . . . 23 . 12 9 . . . . . . . . . . . . . . . Prevented 3 | . . . . . . . . . . . . . 3 . . . . . . . . . . . . . . . . Parts Restored 9 | . . . . . . . . . . . . . . . . . . . . . . . . 9 . . . . . Faulty 9 | . . . . . . . . . . . . . . . . . . . . . . . . 9 . . . . . Kills | -11 -10 -10 -9 -9 -9 -8 -8 -7 -7 -7 -7 -5 -5 -5 -5 -4 -4 -4 -4 -4 -4 -3 -3 -3 -2 -2 -1 -1 -1 ------- Run | Yrd Mat Min Mat Min Exi Min Mat Fac Sto Rec Scr Fac Upp Upp War Pro Fac Was Fac Arm Lab Res Qua Frg Res Tes Acc Com Ac0 Combat Hostiles Destroyed 1346 | . 17 12 24 3 4 4 7 6 15 3 24 7 8 4 66 . 8 . 2 26 . 45 8 112 118 45 195 545 38 Melee 28 | . . . . . . . . . . . . . 1 . 1 . 5 . . . . 1 2 17 1 . . . . Guns 177 | . 14 . 1 1 2 3 . 6 14 3 17 7 3 1 39 . 2 . 1 17 . 3 . . . 14 15 8 6 Cannons 324 | . . . . . . . 7 . 1 . 7 . . . 6 . . . 1 5 . 17 3 50 37 21 74 63 32 AOE 667 | . 3 12 23 2 2 1 . . . . . . 4 3 19 . 1 . . 3 . 21 2 21 49 6 83 412 . Classes Destroyed 42 | 2 7 . 2 . 3 . 1 1 1 . 5 1 1 . 7 . . . . 1 . . 1 6 2 . 1 . . Worker 44 | . 1 . 4 . . 1 . 1 4 . . . . . . . . . . . . 3 . 1 9 2 7 11 . Builder 46 | . 5 . 3 1 . . . 1 3 5 . . . . . . 2 . 1 . . 4 . 3 2 . 16 . . Tunneler 10 | 5 . 1 . . . 1 . . . . . . . . . . 1 . . . . . . . 2 . . . . Hauler 15 | . 2 . 4 . . . . . 4 . . 1 . . . . 1 . . . . 2 . . 1 . . . . Recycler 48 | 1 5 2 6 1 . 2 1 2 7 7 . . . . . . 3 . . . . 2 . . 4 . 1 4 . Carrier 28 | . . . . . . . . . . . . . . . . . . . . . . . . 1 . . 15 12 . Minesweeper 2 | . . . . . . . . . . . . . 1 1 . . . . . . . . . . . . . . . Mechanic 34 | . . . . . . . . . . . . . . . 1 . . . . . . . . 3 7 1 9 13 . Operator 9 | . 1 . . . . . 1 . 1 . . . . . . . . . . . . . . 1 1 . 1 3 . Drone 9 | . . . . . . . . . . . . . . . . . . . . . . . . 8 . . . . 1 Turret 2 | . . . . . 1 . . . . . 1 . . . . . . . . . . . . . . . . . . Watcher 24 | . 3 . 3 . . . 2 . 2 . . . . . . . . . . 1 . . . . 5 1 2 5 . Swarmer 148 | . 12 12 12 3 . 4 . . 1 . . . 5 . 9 . 4 . . 13 . 12 . . 10 2 . 49 . Cutter 12 | . . . . . . . . . . . . . . . . . . . . . . . . . . . . 12 . Saboteur 50 | . . . . . . . . . . . . . . . 4 . . . . . . 1 . 4 5 2 10 24 . Grunt 414 | . 5 . 9 . . . 5 4 8 . . 5 3 2 21 . . . 2 5 . 14 . 37 34 27 66 167 . Brawler 69 | . . . . . . . . . 1 . . . . . 3 . . . . . . . . 8 9 4 6 38 . Duelist 64 | . . . 1 . . . . 1 . . . . . . 1 . . . . . . . . 7 3 4 10 37 . Protector 48 | . . . . . . . . . . . . . . . 5 . . . . . . . . 4 3 3 14 19 . Researcher 6 | . . . . . . . . . . . . . . . . . . . . . . . . 6 . . . . . Sentry 44 | . . . 3 . . . 1 . 2 3 . 1 . . . . 2 . . . . 3 . 8 11 . 3 7 . Demolisher 13 | . . . . . . . . . . . . . . . . . . . . 1 . . . . . . . 12 . Specialist 26 | . . . . . . . . . . . . . . . . . . . . 2 . . . . . . . 24 . Hunter 95 | . . . . . . . 1 . 2 . . . . 2 5 . . . . . . 2 . 4 16 . 14 49 . Programmer 173 | . . . . . . . . 1 1 . . . . . 3 . 2 . . 3 . 13 7 9 18 2 42 72 . Heavy 5 | . . . . . . . . . . . . . . . . . . . . . . . . . 3 . . 2 . Q-Series 2 | . . . . . . . . . . . . . . . . . . . . . . . . . 2 . . . . Behemoth 5 | . . . . . . . . . . . . . . . . . . . . . . . . . . . 2 3 . Armor Guard 2 | . . . . . . . . . . . . . . . . . . . . 2 . . . . . . . . . M Guard 2 | . . . . . . . . . . . . . . . . . . . . . . . . . . . . 2 . Enhanced Grunt 24 | . . . . . . . . . . . . . . . . . . . . . . . . . . . . . 24 Enhanced Sentry 2 | . . . . . . . . . . . . . . . . . . . . . . . . . . . . . 2 Enhanced Hunter 7 | . . . . . . . . . . . . . . . . . . . . . . . . . . . . . 7 Hotshot 5 | . . . . . . . . . . . . . . . . . . . . . . . . 5 . . . . . Decapitator 7 | . . . . . . . . . . . . . . . . . . . . . . . . 7 . . . . . Immortal 5 | . . . . . . . . . . . . . . . . . . . . . . . . 5 . . . . . Combat Programmer 2 | . . . . . . . . . . . . . . . . . . . . . . . . . . . . 2 . Investigator 5 | . . . . . . . . . . . . . . . . . . . . . . . . . . 2 1 2 . Striker 29 | . . . . . . . . . . . . . . . 2 . . . . . . . . . 3 . 15 9 . Executioner 31 | . . . . . . . . . . . . . . . 4 . . . . . . . . . 1 . 13 13 . Alpha 7 4 | . . . . . . . . . . . . . . . . . . . . . . . . 2 . . . 2 . Fortress 1 | . . . . . . . . . . . . . . . . . . . . . . . 1 . . . . . . V-Series 4 | . . . . . . . . . . . . . . . . . . . . . . . . 4 . . . . . Protovariant L 1 | . . . . . . . . . . . . . . . . . . . . . . . . . . 1 . . . Explorer 1 | . . . . . . . . . . . 1 . . . . . . . . . . . . . . . . . . Guru 1 | . . . . . . . . . . . 1 . . . . . . . . . . . . . . . . . . Scientist 1 | . . . . . . . . . . . 1 . . . . . . . . . . . . . . . . . . Scrapper 16 | . . . . . . . . . . . 16 . . . . . . . . . . . . . . . . . . Elite 7 | . . . . . . . . . . . 7 . . . . . . . . . . . . . . . . . . Zionite 8 | . . . . . 8 . . . . . . . . . . . . . . . . . . . . . . . . Decomposer 1 | . . . . . . . . . . . . . 1 . . . . . . . . . . . . . . . . Tinkerer 2 | . . . . . . . . . . . . . . . 2 . . . . . . . . . . . . . . Assembled 3 | . . . . . 3 . . . . . . . . . . . . . . . . . . . . . . . . Surgeon 3 | . . . . . . . . . . . . . . . 3 . . . . . . . . . . . . . . Thug 7 | . . . . . . . . . . . . . . . 7 . . . . . . . . . . . . . . Bouncer 1 | . . . . . . . . . . . . . . . 1 . . . . . . . . . . . . . . Martyr 2 | . . . . . . . . . . . . 1 . . 1 . . . . . . . . . . . . . . Mutant 4 | . . . . . . . . . . . . . . . 4 . . . . . . . . . . . . . . Commander 1 | . . . . . . . . . . . . . . . 1 . . . . . . . . . . . . . . Best Kill Streak 90 | 4 3 7 7 5 3 3 2 3 7 7 3 4 6 2 21 . 5 . 2 5 . 14 3 10 36 19 34 90 7 Combat Bots Only 90 | . 3 6 4 3 3 3 2 3 3 1 3 4 6 2 21 . 4 . 1 5 . 13 3 8 35 18 34 90 7 Max Kills in Single Turn 25 | 1 3 3 3 1 2 1 1 2 3 3 1 1 3 1 7 . 2 . 2 2 . 3 1 3 4 5 5 25 2 Gunslinging 1 | . 1 . . . . . . 1 . . . . . . . . . . . . . . . . . . . . 1 Exploded 25 | . 2 3 2 1 2 1 . . . . . . 3 1 6 . 1 . . 2 . 3 1 3 4 4 3 25 . Melee 1 | . . . . . . . . . . . . . 1 . 1 . 1 . . . . 1 1 1 1 . . . . Uniques/NPCs Destroyed 15 | . . . . . 4 . . . . . 2 . . . . . . . . . . . . . . . . 2 7 8R-AWN (-9/Exiles) EX-BIN (-9/Exiles) EX-DEC (-9/Exiles) EX-HEX (-9/Exiles) Triborg (-7/Scraptown) Optimus (-7/Scraptown) MAIN.C Shell (-1/Command) MAIN.C (-1/Command) A8 (-1/Access_0) A6 (-1/Access_0) A5 (-1/Access_0) A2 (-1/Access_0) Architect (-1/Access_0) A4 (-1/Access_0) A3 (-1/Access_0) Combat | -11 -10 -10 -9 -9 -9 -8 -8 -7 -7 -7 -7 -5 -5 -5 -5 -4 -4 -4 -4 -4 -4 -3 -3 -3 -2 -2 -1 -1 -1 -------- Run | Yrd Mat Min Mat Min Exi Min Mat Fac Sto Rec Scr Fac Upp Upp War Pro Fac Was Fac Arm Lab Res Qua Frg Res Tes Acc Com Ac0 Hostile Shots Fired 4082 | . 91 19 43 14 83 36 30 10 56 57 120 19 6 27 262 10 60 2 32 75 . 221 53 637 454 238 284 560 583 Missed 1462 | . 22 8 14 9 10 18 8 1 11 22 40 4 5 8 90 4 15 1 8 30 . 81 17 281 182 91 84 153 245 Deflected 145 | . . . . . . . . . . . . . . . . . . . . . . . . 30 19 12 33 43 8 Hits 2620 | . 69 11 29 5 73 18 22 9 45 35 80 15 1 19 172 6 45 1 24 45 . 140 36 356 272 147 200 407 338 Melee 101 | . . . . . . 1 . . 6 . 5 . . 7 21 . . 1 . . . 2 . 35 2 16 . 1 4 Projectile 2519 | . 69 11 29 5 73 17 22 9 39 35 75 15 1 12 151 6 45 . 24 45 . 138 36 321 270 131 200 406 334 AOE 36 | . . . . . . . . . . . . 3 . . 2 . . . . 3 . . . 6 . 1 1 20 . Critical Strikes 173 | . . . . . 30 . . . 2 . 8 2 . 1 14 . 2 1 1 2 . 5 3 37 15 17 9 12 12 Actively Blocked 24 | . . . . . . . . . . . . . . . . . . . . . . . . 13 2 . 5 3 1 Part Disruptions 34 | . . . . . . . . 1 . . 2 . . . 10 . . . . . . 4 . 2 2 . . 11 2 Damage Taken 44798 | . 671 149 459 61 1439 272 379 127 744 233 1896 371 17 245 5339 61 787 34 598 1177 . 2992 917 4413 3966 1877 1918 6434 7222 Core 4362 | . 132 10 66 . 198 55 18 . 61 22 295 91 . . 736 12 . 34 89 196 . 281 48 335 408 160 149 307 659 Absorbed by Shields 12915 | . . . . . . . . . . . 162 . . 25 70 . . . . . . 55 . 1083 2748 1018 1361 2729 3664 Reduced by Siege Mode 411 | . . . . . . . . . . . . . . . . . . . . . . . . . . . . 411 . Redirected to Shielding 273 | . 10 1 . . . . . . . . . . . . . . . . . . . . 50 94 . . . . 118 Ignored by Resistances 8723 | . . . . . . . . . . . . . . . . . . . . . . . 161 3396 956 867 790 2553 . Regen/Repaired (Parts) 4859 | . . . 59 . . . . . 186 . 464 . . . . . . . . . . 737 135 1451 307 . . 1520 . Core Remaining (%) 50 | 100 . 43 . . . 20 96 . . . 46 . . . . 16 . . . . 72 . . 30 . 60 . . 22 Volleys Fired 4156 | 22 80 12 77 9 137 93 28 28 84 38 230 23 16 16 193 . 8 . 27 129 . 224 42 374 241 129 555 930 411 Largest 4 | 2 2 1 3 2 3 3 3 3 3 3 3 4 2 3 4 . 4 . 4 4 . 4 2 2 2 2 2 4 4 Hottest 480 | 40 100 30 66 53 69 80 120 78 90 88 100 110 50 89 161 . 126 . 216 221 . 480 240 300 250 190 155 268 363 Shots Fired 5751 | 44 143 12 92 16 299 104 76 69 194 79 453 68 17 37 346 . 32 . 38 330 . 333 51 376 258 140 561 1083 500 Gun 2621 | 44 125 . 21 13 264 104 19 64 189 62 356 68 15 32 260 . 32 . 11 273 . 53 . 3 . 41 37 396 139 Cannon 2120 | . . . . . . . 57 5 5 17 95 . . . 75 . . . 27 56 . 257 46 316 195 97 421 283 168 Launcher 1002 | . 16 12 71 3 35 . . . . . . . 2 5 9 . . . . 1 . 21 5 57 63 2 103 404 193 Special 8 | . 2 . . . . . . . . . 2 . . . 2 . . . . . . 2 . . . . . . . Kinetic 2901 | 44 125 . 21 13 264 104 76 69 194 79 451 68 15 32 299 . 32 . 11 273 . 53 . 28 25 41 37 398 149 Thermal 1806 | . 2 . . . . . . . . . . . . . . . . . 27 56 . 257 46 291 170 97 421 281 158 Explosive 718 | . 16 12 60 . . . . . . . . . 2 5 3 . . . . . . 19 5 10 23 2 102 266 193 Electromagnetic 277 | . . . 11 3 35 . . . . . . . . . . . . . . 1 . 2 . 47 40 . . 138 . Entropic 42 | . . . . . . . . . . . . . . . 42 . . . . . . . . . . . . . . Robot Hit Streak 133 | 9 17 1 13 4 33 22 12 9 23 10 15 15 5 4 38 . 4 . 9 6 . 10 4 11 17 8 77 133 23 Robot Miss Streak 8 | 3 4 1 2 3 4 7 4 4 3 4 3 3 2 3 4 . 2 . 2 8 . 5 8 5 4 5 4 2 8 Penetration Max 3 | . . . . . . . . 1 2 1 1 1 1 . 2 . 1 . . 1 . 1 . 2 1 3 2 1 1 Secondary Targets 12 | . 5 . . . . . . 1 1 . . . . . 2 . . . . . . 1 . . . . . 1 1 Max Gunslinging Chain 1 | . 1 . . . . . . 1 1 . . . . . 1 . . . . . . 1 . . . . . 1 1 Capacitor 946 | . . . . . . . . . . . . . . . . . . . . . . 6 . 151 98 56 319 192 124 Shots Hit Robots 2661 | 29 93 1 30 9 193 49 38 41 129 34 139 45 14 22 211 . 38 . 16 72 . 113 19 201 107 67 194 521 236 Core Hits 2752 | 11 52 17 81 7 58 13 17 18 59 19 66 21 16 14 169 . 24 . 6 62 . 82 8 158 218 98 240 1021 197 Critical Kills 158 | . . . . . . 2 . 1 7 4 3 7 2 1 7 . . . 1 2 . 3 . 10 6 18 34 20 30 Critical Parts Destroyed 112 | . . . . . . 1 . . 8 7 2 8 1 1 7 . 1 . . 1 . 2 1 4 . 24 25 3 16 Critical Strikes 321 | . . . . . 1 4 1 1 16 13 7 15 4 2 22 . 4 . 1 6 . 5 3 16 11 42 59 31 57 Meltdown 63 | . . . . . . . . . . . . . . . . . . . . . . 3 . 10 6 5 20 19 . Destroy 232 | . . . . . 1 4 . 1 15 12 5 15 3 2 14 . 1 . 1 6 . 2 1 4 . 37 39 12 57 Blast 11 | . . . . . . . 1 . 1 1 2 . . . . . . . . . . . . 1 5 . . . . Sever 4 | . . . . . . . . . . . . . 1 . . . . . . . . . 2 1 . . . . . Impale 4 | . . . . . . . . . . . . . . . 1 . 3 . . . . . . . . . . . . Sunder 7 | . . . . . . . . . . . . . . . 7 . . . . . . . . . . . . . . Melee Attacks 815 | . . . . . . . . . . . 623 13 12 1 6 2 36 . . . . . 24 93 1 1 . 3 . Kinetic 2 | . . . . . . . . . . . . . . . . . . . . . . . 2 . . . . . . Impact . | . . . . . . . . . . . . . . . . . . . . . . . . . . . . . . Slashing 766 | . . . . . . . . . . . 623 13 12 1 . . . . . . . . 22 93 1 1 . . . Piercing 44 | . . . . . . . . . . . . . . . 6 2 36 . . . . . . . . . . . . Sneak Attacks 24 | . . . . . . . . . . . 1 . 2 . . . 7 . . . . . . 14 . . . . . Combat Hostiles . | . . . . . . . . . . . . . . . . . . . . . . . . . . . . . . Follow-up Attacks 5 | . . . . . . . . . . . . . . . . . . . . . . . . 5 . . . . . Damage Inflicted 325251 | 247 1326 741 2745 118 2340 819 953 705 2302 932 3801 809 1062 736 13884 . 2096 . 540 3667 . 9310 1817 27670 26426 7683 50827 150839 10856 Guns 39510 | 247 698 . 201 84 2134 723 107 705 2246 810 1698 809 168 329 8054 . 494 . 191 2587 . 1116 . 19 . 584 520 10432 4554 Cannons 91403 | . . . . . . . 846 . 56 122 1206 . . . 1493 . . . 349 662 . 4450 666 17268 11269 4469 21987 20571 5989 Explosions 186687 | . 628 736 2544 34 206 96 . . . . . . 345 407 4091 . 154 . . 418 . 3744 610 6547 15157 2539 28320 119836 275 Melee 7557 | . . . . . . . . . . . 897 . 549 . 218 . 1448 . . . . . 541 3836 . 68 . . . Ramming 94 | . . 5 . . . . . . . . . . . . 28 . . . . . . . . . . 23 . . 38 Kinetic 44349 | 247 698 . 201 84 2134 723 953 705 2302 932 2904 809 168 329 8167 . 494 . 191 2587 . 1116 . 1464 2179 584 520 10432 3426 Thermal 144527 | . . . 34 . . 96 . . . . . . . . . . 78 . 349 662 . 4450 666 16806 9459 4469 49989 50077 7392 Explosive 104714 | . 628 736 2278 . . . . . . . . . 345 407 534 . . . . 193 . 3696 610 1632 8688 2539 318 82110 . Electromagnetic 19073 | . . . 232 34 206 . . . . . . . . . . . 76 . . 225 . 48 . 3932 6100 . . 8220 . Impact . | . . . . . . . . . . . . . . . . . . . . . . . . . . . . . . Slashing 5891 | . . . . . . . . . . . 897 . 549 . . . . . . . . . 541 3836 . 68 . . . Piercing 1666 | . . . . . . . . . . . . . . . 218 . 1448 . . . . . . . . . . . . Entropic 4937 | . . . . . . . . . . . . . . . 4937 . . . . . . . . . . . . . . Highest Corruption 41 | . . . . . 4 4 . . . 1 . . . . 14 14 2 11 11 24 24 8 23 41 16 23 2 17 4 Average Corruption 7 | . . . . . 4 4 . . . 1 . . . . 1 14 1 9 11 17 24 4 18 25 8 16 1 4 3 Corruption Purged 132 | . . . . . . . . . . . . . . . . . . . . . . 2 . 7 . . 4 119 . Corruption Blocked . | . . . . . . . . . . . . . . . . . . . . . . . . . . . . . . Effects 738 | . . . . . 60 22 . . . 2 . . . . 3 4 1 4 17 66 1 59 36 182 36 42 40 53 110 Message Errors 171 | . . . . . 16 7 . . . . . . . . 2 2 . 1 3 13 . 13 13 37 6 5 14 16 23 Matter Fused 166 | . . . . . 14 3 . . . . . . . . . 1 1 . 3 17 1 13 8 35 10 8 9 11 32 Heat Flow Errors 92 | . . . . . 7 2 . . . . . . . . 1 . . 1 2 8 . 6 4 28 3 7 3 5 15 Energy Discharges 80 | . . . . . 8 2 . . . 1 . . . . . . . 2 4 9 . 4 2 10 3 5 8 8 14 Parts Rejected 11 | . . . . . . . . . . . . . . . . 1 . . 1 1 . 2 . 2 1 1 1 . 1 Parts Fused 5 | . . . . . . . . . . . . . . . . . . . . . . . . 3 . . . . 2 Data Loss (minor) 89 | . . . . . 7 3 . . . 1 . . . . . . . . . 4 . 12 3 27 3 7 3 8 11 Data Loss (major) 25 | . . . . . 2 2 . . . . . . . . . . . . 2 2 . 4 . 7 1 2 . . 3 Misfires 28 | . . . . . 2 3 . . . . . . . . . . . . 2 3 . . 1 4 2 2 1 4 4 Alerts 10 | . . . . . 1 . . . . . . . . . . . . . . . . 1 1 2 1 . 1 . 3 Misdirections 14 | . . . . . . . . . . . . . . . . . . . . 1 . . 1 11 1 . . . . Weapon Failures 47 | . . . . . 3 . . . . . . . . . . . . . . 8 . 4 3 16 5 5 . 1 2 Overload Shots . | . . . . . . . . . . . . . . . . . . . . . . . . . . . . . . Overflow Damage 24238 | . 53 42 20 . . . 25 . . 10 228 . 205 . 180 . 185 . 6 17 . 599 328 2436 1656 292 6133 11689 134 Projectiles 8942 | . . . . . . . 25 . . 10 . . . . 29 . . . 6 17 . 374 241 1285 1338 226 2467 2867 57 Explosions 13700 | . 53 42 20 . . . . . . . . . 3 . 139 . . . . . . 225 2 267 318 66 3666 8822 77 Melee 1596 | . . . . . . . . . . . 228 . 202 . 12 . 185 . . . . . 85 884 . . . . . Knockbacks 31 | . . . . . . . 6 . . 2 . . . . 4 . . . . . . . . 2 12 . . . 5 Impact 1 | . . . . . . . . . . . . . . . 1 . . . . . . . . . . . . . . Kinetic 27 | . . . . . . . 6 . . 2 . . . . 3 . . . . . . . . 2 9 . . . 5 Secondary 3 | . . . . . . . . . . . . . . . . . . . . . . . . . 3 . . . . Self-Inflicted Damage 1962 | . 15 66 119 20 39 . . . . . . . . 17 199 . 27 . . 78 . 60 . 467 498 59 2 110 186 Shots 70 | . 1 4 6 2 3 . . . . . . . . 1 2 . 1 . . 2 . 2 . 23 17 2 1 1 2 Rammed 4 | . . 3 . . . . . . . . . . . . 1 . . . . . . . . . . . . . . Targets Rammed 7 | . . 3 . . . . . . . . . . . . 2 . . . . . . . . . . 1 . . 1 Kicked 3 | . . . . . . . . . . . . . . . 1 . . . . . . . . . . 1 . . 1 Crushed . | . . . . . . . . . . . . . . . . . . . . . . . . . . . . . . Highest Temperature 440 | . 36 . 79 8 349 243 348 186 297 192 126 372 . 31 379 . 2 116 199 347 . 440 184 284 391 190 187 237 203 Average Temperature 132 | . 14 . 29 4 84 83 101 52 89 45 33 99 . 17 74 . 2 61 60 112 . 78 65 58 94 95 147 100 86 Received Heat Transfer 4709 | . 162 . 108 . . 63 153 63 189 42 156 90 . 36 640 . 36 . 114 127 . 165 18 1157 284 205 99 352 450 Thermoelectric Energy+ 3366129 | . . . . . . . . . . . . . . . . . . . . . . . . . 1170 1242 3358245 4960 512 Effects 23 | . . . . . 5 . . . 1 . . . . . 1 . . . . 2 . 7 . 2 . . . 3 2 Shutdowns 2 | . . . . . . . . . . . . . . . . . . . . . . 2 . . . . . . . Energy Bleed 7 | . . . . . 2 . . . 1 . . . . . . . . . . 2 . 1 . 1 . . . . . Interference 10 | . . . . . . . . . . . . . . . . . . . . . . 4 . 1 . . . 3 2 Matter Decay 2 | . . . . . 2 . . . . . . . . . . . . . . . . . . . . . . . . Short Circuit 2 | . . . . . 1 . . . . . . . . . 1 . . . . . . . . . . . . . . Siege Activations 3 | . . . . . . . . . . . . . . . . . . . . . . . . . . . . 3 . Total Turns 82 | . . . . . . . . . . . . . . . . . . . . . . . . . . . . 82 . Longest Duration 60 | . . . . . . . . . . . . . . . . . . . . . . . . . . . . 60 . Martial Activations . | . . . . . . . . . . . . . . . . . . . . . . . . . . . . . . Shielding Activations 58 | . . . . . . . . . . . . . . . . . . . . . . . . . . . 27 29 2 Total Turns 2766 | . . . . . . . . . . . . . . . . . . . . . . . . . . . 1705 971 90 Longest Duration 956 | . . . . . . . . . . . . . . . . . . . . . . . . . . . 956 657 55 Robots Disrupted 2 | . . . . . . . . . . . . . . . . . . . . 1 . . . . 1 . . . . Combat Hostiles 2 | . . . . . . . . . . . . . . . . . . . . 1 . . . . 1 . . . . Robots Corrupted 92 | . . . . . 1 . . . . . . . . . . . . . . . . 1 . 16 27 . . 47 . Combat Hostiles 88 | . . . . . . . . . . . . . . . . . . . . . . 1 . 14 26 . . 47 . Parts Fried 188 | . . . 1 . . . . . . . . . . . . . . . . . . . . 37 63 . . 87 . Impact Corruptions . | . . . . . . . . . . . . . . . . . . . . . . . . . . . . . . Robots Melted 79 | . . . . . . . . . . . . . . . . . . . . . . 3 . 10 7 5 32 22 . Combat Hostiles 58 | . . . . . . . . . . . . . . . . . . . . . . 2 . 9 5 4 23 15 . Parts Melted 188 | . . . . . . . . . . . 1 . . . 3 . . . . 2 . 15 . 12 16 8 66 63 2 Heat Transferred 81086 | . . . 50 . . 62 . . . . . . . . . . 50 . 333 555 . 3515 296 8820 5700 2600 27690 28391 3024 Parts Sabotaged 20 | . . . . . . . . . . . . . . . 12 . . . . . . 7 . . 1 . . . . Parts Stolen 6 | . . . . . . . . . . . 1 . . 5 . . . . . . . . . . . . . . . Parts Stripped 18 | . . . . . . . . . . . . . . . . . . . . . . . 18 . . . . . . Power Chain Reactions 32 | . . . . 1 . . . . . . . . . . . . 1 . . . . . . 3 5 . . 21 1 Alert | -11 -10 -10 -9 -9 -9 -8 -8 -7 -7 -7 -7 -5 -5 -5 -5 -4 -4 -4 -4 -4 -4 -3 -3 -3 -2 -2 -1 -1 -1 ------- Run | Yrd Mat Min Mat Min Exi Min Mat Fac Sto Rec Scr Fac Upp Upp War Pro Fac Was Fac Arm Lab Res Qua Frg Res Tes Acc Com Ac0 Maximum Alert Level 5 | . . . 3 1 . . . . . . . . . . . . 1 . . 2 . 5 4 5 5 5 5 5 . Low Security (%) 19 | 100 100 100 20 77 . 100 100 100 100 100 . 100 . . . . 98 100 100 45 . 9 . . . . . . . Level 1 1 | . . . 6 22 . . . . . . . . . . . . 1 . . 19 . 27 . . . . . . . Level 2 3 | . . . 66 . . . . . . . . . . . . . . . . 34 . 16 . 5 . . . . . Level 3 1 | . . . 5 . . . . . . . . . . . . . . . . . . 21 24 14 . . . . . Level 4 1 | . . . . . . . . . . . . . . . . . . . . . . 5 75 17 . . . . . Level 5 26 | . . . . . . . . . . . . . . . . . . . . . . 20 . 62 26 33 4 54 . High Security 43 | . . . . . . . . . . . . . . . . . . . . . . . . . 73 66 95 45 . Max Security . | . . . . . . . . . . . . . . . . . . . . . . . . . . . . . . Sterilizations 1 | . . . . . . . . . . . . . . . . . . . . . . . . . . . 1 . . Peak Influence 28739 | 10 199 190 717 242 . 97 57 95 198 75 . 108 . . . . 200 67 46 664 . 1863 1351 4631 6654 5459 21735 28739 . Initial 13910 | . . 75 . 242 . . . . 39 65 . . . . . . 12 67 4 . . . 1047 594 2604 3742 3275 13910 . Average 11928 | 1 58 70 471 166 . 19 12 12 105 19 . 47 . . . . 71 36 9 264 . 801 1223 2357 4286 4363 17464 26472 . Influence Increases 81436 | 30 723 380 1344 85 . 224 251 174 531 328 45 201 270 170 1360 30 389 . 117 1460 . 2581 695 4786 4250 1877 18816 23291 17028 Destroy 0b10 Robot/C 25220 | . 340 240 580 60 . 80 140 120 300 60 . 120 160 80 1020 . 160 . 40 680 . 900 160 2140 2300 880 3940 10720 . Destroy 0b10 Robot/NC 1550 | 30 85 15 110 10 . 20 20 20 105 60 45 5 10 5 10 . 35 . 5 20 . 55 . 105 170 35 250 325 . Destroy Leader 2854 | . 70 40 154 10 . 10 34 30 72 . . 22 10 10 . . 42 . . 126 . 164 30 240 362 92 734 602 . Allied During Kill 226 | . . . 52 . . . . . . . . . . . . . . . . 174 . . . . . . . . . Trap Triggered on 0b10 20 | . . . . . . . . . . . . . . . . . . . . 20 . . . . . . . . . Successful Hack 268 | . 32 . 29 . . . 9 . 4 46 . 7 . . . . 14 . 6 11 . 43 17 . 14 12 . 24 . Select Force Hacks 180 | . 30 . . . . . . . . 150 . . . . . . . . . . . . . . . . . . . Disable Machine 1980 | . 15 30 105 . . 30 30 . 30 . . . . . . . 45 . 15 150 . 75 105 255 120 180 150 435 210 Anti-Garrison Action 1300 | . . . . . . . . . . . . . . . . . . . . . . 200 200 150 150 150 400 50 . Destroy Structure 45393 | . 91 55 314 5 . 9 18 4 20 12 . 32 . . . . 48 . 36 144 . 604 138 1626 969 513 13237 10700 16818 Partial Spotted 105 | . . . . . . . . . . . . . . . . . . . . 15 . 60 . 30 . . . . . Lose Combat Pursuer 2340 | . 60 . . . . 75 . . . . . 15 90 75 330 30 45 . 15 120 . 480 45 240 165 15 105 435 . Influence Decreases 64658 | 30 529 574 722 594 113 224 251 87 450 475 21 181 331 174 297 1073 217 185 124 798 662 718 1502 1212 2226 3072 2540 8073 37203 Entered New Map 55895 | . . 119 . 380 113 . . . 48 103 21 45 25 2 . 1063 8 125 3 . 662 . 816 462 2026 2912 2184 7825 36953 Time Decay 6971 | 30 349 445 642 214 . 214 251 87 392 372 . 136 306 162 107 10 197 50 92 427 . 618 356 720 150 120 326 198 . Lost Part 874 | . 30 10 40 . . 10 . . 10 . . . . 10 190 . 12 10 22 50 . 90 30 30 50 40 30 50 160 Lost Ally 421 | . . . 40 . . . . . . . . . . . . . . . 7 274 . 10 . . . . . . 90 Purge Threat 497 | . 150 . . . . . . . . . . . . . . . . . . 47 . . 300 . . . . . . Squads Dispatched 249 | . 1 1 7 . . . 1 3 3 . . 2 . . . . . . 1 6 . 22 8 28 43 19 68 36 . Investigation 13 | . 1 1 2 . . . . 1 . . . . . . . . . . . 1 . 2 1 . 1 . 3 . . Extermination 23 | . . . . . . . . 1 1 . . . . . . . . . . 4 . 7 2 5 1 . 2 . . Reinforcement 29 | . . . 3 . . . 1 1 2 . . 2 . . . . . . 1 1 . 5 1 6 3 2 1 . . Assault 183 | . . . 2 . . . . . . . . . . . . . . . . . . 8 4 17 37 17 62 36 . Garrison 1 | . . . . . . . . . . . . . . . . . . . . . . . . . 1 . . . . Intercept . | . . . . . . . . . . . . . . . . . . . . . . . . . . . . . . Searches Triggered . | . . . . . . . . . . . . . . . . . . . . . . . . . . . . . . Unchained Authorized 3 | . . . . . . . . . . . . 1 1 . . . . . . . . . . . 1 . . . . Construction Impeded 6 | . . . 2 . . . . . 1 . . . . . . . . . . . . 1 . 1 . . 1 . . Haulers Reinforced 1 | . . . . . . . . . . . . . . . . . . . . . . 1 . . . . . . . Active Scanning Responses . | . . . . . . . . . . . . . . . . . . . . . . . . . . . . . . Cargo Convoy Interrupts 1 | . . . . . . . . . . . . . . . . . . . . . . 1 . . . . . . . Stealth | -11 -10 -10 -9 -9 -9 -8 -8 -7 -7 -7 -7 -5 -5 -5 -5 -4 -4 -4 -4 -4 -4 -3 -3 -3 -2 -2 -1 -1 -1 --------- Run | Yrd Mat Min Mat Min Exi Min Mat Fac Sto Rec Scr Fac Upp Upp War Pro Fac Was Fac Arm Lab Res Qua Frg Res Tes Acc Com Ac0 Distress Signals 36 | . 4 . 3 . . . 4 . . . . . . . 1 . 1 . 3 1 . 4 1 2 3 1 4 4 . Communications Jammed 28 | . . . . . . . . . . . . . . . . . . . . . . 4 4 1 6 3 4 6 . Distress Signals 27 | . . . . . . . . . . . . . . . . . . . . . . 4 3 1 6 3 4 6 . Times Spotted 1642 | . 36 12 42 4 20 17 15 7 21 2 162 9 7 12 120 7 13 6 15 45 . 83 17 154 156 70 178 337 75 Peak Tracking Total 84 | . 4 3 4 4 10 6 4 3 3 2 8 5 4 4 37 5 6 6 6 14 . 12 3 32 12 15 13 84 8 Tactical Retreats 116 | . 4 . . . 8 3 . . . . 11 1 3 2 7 1 1 1 2 5 . 21 3 11 7 1 6 14 4 ECM-based Alert Blocks 16 | . . . . . . . . . . . . . . . . . . . 2 2 . 12 . . . . . . . Traps | -11 -10 -10 -9 -9 -9 -8 -8 -7 -7 -7 -7 -5 -5 -5 -5 -4 -4 -4 -4 -4 -4 -3 -3 -3 -2 -2 -1 -1 -1 ------- Run | Yrd Mat Min Mat Min Exi Min Mat Fac Sto Rec Scr Fac Upp Upp War Pro Fac Was Fac Arm Lab Res Qua Frg Res Tes Acc Com Ac0 Traps Triggered 109 | . 1 . 1 . . . 1 . 1 . . . . . 5 . 2 . 3 5 . 13 1 18 . 1 3 54 . Indirectly 59 | . . . . . . . . . . . . . . . . . 1 . . . . 3 . 3 . . . 52 . Trap Hack Attempts . | . . . . . . . . . . . . . . . . . . . . . . . . . . . . . . Triggered . | . . . . . . . . . . . . . . . . . . . . . . . . . . . . . . Disarmed . | . . . . . . . . . . . . . . . . . . . . . . . . . . . . . . Reprogrammed . | . . . . . . . . . . . . . . . . . . . . . . . . . . . . . . Reused 5 | . . . . . . . . . . . . . 1 . 2 . . . . 2 . . . . . . . . . Traps Extracted 1 | . . . . . . . . . . . . . . 1 . . . . . . . . . . . . . . . Installed 6 | . . . . . . . . . . . . . 2 . 2 . . . . 2 . . . . . . . . . Triggered 5 | . . . . . . . . . . . . . 1 . 2 . . . . 2 . . . . . . . . . Most Traps Carried 6 | . . . . . . . . . . . . . 4 6 6 2 2 2 2 2 . . . . . . . . . Machines | -11 -10 -10 -9 -9 -9 -8 -8 -7 -7 -7 -7 -5 -5 -5 -5 -4 -4 -4 -4 -4 -4 -3 -3 -3 -2 -2 -1 -1 -1 ---------- Run | Yrd Mat Min Mat Min Exi Min Mat Fac Sto Rec Scr Fac Upp Upp War Pro Fac Was Fac Arm Lab Res Qua Frg Res Tes Acc Com Ac0 Machines Disabled 321 | . 1 2 7 . 6 2 2 . 2 . 92 . . . 3 . 3 . 1 10 . 5 9 31 9 18 60 33 25 Max in Single Turn 7 | . 1 1 3 . 1 1 1 . 1 . 1 . . . 1 . 2 . 1 2 . 1 1 2 2 2 3 2 7 Garrison Access 11 | . . . . . . . . . . . . . . . . . . . . . . 1 1 1 1 1 6 . . Phase Generator 1 | . . . . . . . . . . . . . . . . . . . . . . . . . . . . 1 . Energy Cycler 2 | . . . . . . . . . . . . . . . . . . . . . . . . . . . 2 . . Machines Repaired . | . . . . . . . . . . . . . . . . . . . . . . . . . . . . . . Machines Dismantled 1 | . . . . . . . . . . . 1 . . . . . . . . . . . . . . . . . . Machines Sabotaged . | . . . . . . . . . . . . . . . . . . . . . . . . . . . . . . Overloaded Fab Kills . | . . . . . . . . . . . . . . . . . . . . . . . . . . . . . . Hacking | -11 -10 -10 -9 -9 -9 -8 -8 -7 -7 -7 -7 -5 -5 -5 -5 -4 -4 -4 -4 -4 -4 -3 -3 -3 -2 -2 -1 -1 -1 --------- Run | Yrd Mat Min Mat Min Exi Min Mat Fac Sto Rec Scr Fac Upp Upp War Pro Fac Was Fac Arm Lab Res Qua Frg Res Tes Acc Com Ac0 Machines Accessed 105 | . 9 2 8 . 2 1 2 2 3 11 9 2 . . 2 . 4 . 4 9 . 11 8 2 3 2 5 2 2 Terminals 56 | . 7 . 5 . . 1 2 1 2 6 . 2 . . . . 1 . 2 6 . 5 6 1 3 1 3 2 . Fabricators 2 | . . . . . . . . . . . . . . . . . . . . 2 . . . . . . . . . Repair Stations 4 | . . . 1 . . . . . 1 . . . . . . . . . . 1 . 1 . . . . . . . Recycling Units 14 | . 2 . 1 . . . . 1 . 5 . . . . . . 1 . 2 . . 2 . . . . . . . Scanalyzers 8 | . . . 1 . . . . . . . . . . . . . 2 . . . . 2 1 1 . 1 . . . Garrison Access 4 | . . . . . . . . . . . . . . . . . . . . . . 1 1 . . . 2 . . Total Hacks 329 | . 20 2 24 . 2 3 7 4 4 40 57 4 . . 7 . 12 . 8 21 . 25 21 2 6 6 10 3 41 Successful 206 | . 12 2 11 . 2 1 4 . 3 20 57 1 . . 7 . 5 . 2 13 . 13 5 1 1 2 2 1 41 Failed 121 | . 8 . 12 . . 2 3 4 1 20 . 3 . . . . 7 . 6 8 . 11 16 1 5 4 8 2 . Catastrophic 25 | . 2 . 1 . . . . 1 . 3 . 1 . . . . 3 . . 1 . 3 5 . 2 1 2 . . Database Lockouts 2 | . . . 1 . . . . . . . . . . . . . . . . . . 1 . . . . . . . Manual 150 | . 19 . 11 . 1 1 4 4 3 42 . 1 . . . . 2 . 7 10 . 11 16 . 3 4 7 3 1 Terminals 136 | . 17 . 13 . . 3 7 3 2 24 . 4 . . . . 2 . 4 14 . 9 14 1 6 4 6 3 . Fabricators 6 | . . . . . . . . . . . . . . . . . . . . 6 . . . . . . . . . Repair Stations 11 | . . . 4 . . . . . 2 . . . . . . . . . . 1 . 4 . . . . . . . Recycling Units 30 | . 3 . 2 . . . . 1 . 16 . . . . . . 1 . 4 . . 3 . . . . . . . Scanalyzers 28 | . . . 5 . . . . . . . . . . . . . 9 . . . . 7 4 1 . 2 . . . Garrison Access 9 | . . . . . . . . . . . . . . . . . . . . . . 2 3 . . . 4 . . Terminal Hacks 130 | . 2 2 2 . 2 1 2 . 1 3 57 1 . . 7 . . . . 6 . . 2 1 . . . . 41 Record 74 | . . . . . 1 1 . . . . 57 . . . . . . . . . . . . . . . . . 15 Part Schematic 1 | . 1 . . . . . . . . . . . . . . . . . . . . . . . . . . . . Robot Analysis 3 | . . . . . . . . . . 3 . . . . . . . . . . . . . . . . . . . Prototype ID Bank 7 | . . . 1 . . . . . . . . . . . 6 . . . . . . . . . . . . . . Open Door 6 | . . 2 . . . . . . 1 . . . . . 1 . . . . 2 . . . . . . . . . Branch Access Points 1 | . . . . . . . . . . . . 1 . . . . . . . . . . . . . . . . . Emergency Access Points 1 | . . . . . . . . . . . . . . . . . . . . 1 . . . . . . . . . Terminal Index 1 | . . . . . . . . . . . . . . . . . . . . 1 . . . . . . . . . Alert Level 1 | . . . . . . . 1 . . . . . . . . . . . . . . . . . . . . . . Unreport Threat 4 | . 1 . . . . . . . . . . . . . . . . . . 1 . . 2 . . . . . . Locate Traps 3 | . . . 1 . . . 1 . . . . . . . . . . . . 1 . . . . . . . . . Proto ID Catalog 2 | . . . . . 1 . . . . . . . . . . . . . . . . . . 1 . . . . . Gate Test 138-A 9 | . . . . . . . . . . . . . . . . . . . . . . . . . . . . . 9 Gate Test 138-B 8 | . . . . . . . . . . . . . . . . . . . . . . . . . . . . . 8 Gate Test 138-C 6 | . . . . . . . . . . . . . . . . . . . . . . . . . . . . . 6 Gate Test 138-END 3 | . . . . . . . . . . . . . . . . . . . . . . . . . . . . . 3 Fabricator Hacks 3 | . . . . . . . . . . . . . . . . . . . . 3 . . . . . . . . . Load Schematic 2 | . . . . . . . . . . . . . . . . . . . . 2 . . . . . . . . . Build 1 | . . . . . . . . . . . . . . . . . . . . 1 . . . . . . . . . Repair Station Hacks 6 | . . . 2 . . . . . 2 . . . . . . . . . . . . 2 . . . . . . . Scan Component 3 | . . . 1 . . . . . 1 . . . . . . . . . . . . 1 . . . . . . . Repair 3 | . . . 1 . . . . . 1 . . . . . . . . . . . . 1 . . . . . . . Recycling Unit Hacks 1 | . . . . . . . . . . . . . . . . . . . 1 . . . . . . . . . . Retrieve Components 1 | . . . . . . . . . . . . . . . . . . . 1 . . . . . . . . . . Scanalyzer 15 | . . . 3 . . . . . . . . . . . . . 5 . . . . 5 1 . . 1 . . . Insert Component 5 | . . . . . . . . . . . . . . . . . 3 . . . . 2 . . . . . . . Analyze 2 | . . . . . . . . . . . . . . . . . . . . . . 2 . . . . . . . Retrieve Study 8 | . . . 3 . . . . . . . . . . . . . 2 . . . . 1 1 . . 1 . . . Garrison Access Hacks . | . . . . . . . . . . . . . . . . . . . . . . . . . . . . . . Unauthorized Hacks 51 | . 10 . 4 . . . 2 . . 17 . . . . . . . . 1 4 . 6 2 . 1 1 2 1 . Terminals 28 | . 8 . 4 . . . 2 . . 5 . . . . . . . . . 2 . 3 1 . 1 1 . 1 . Botnet 15 | . 2 . 1 . . . 1 . . 3 . . . . . . . . . 2 . 2 1 . 1 1 . 1 . Operators 1 | . 1 . . . . . . . . . . . . . . . . . . . . . . . . . . . . Skim 12 | . 5 . 3 . . . 1 . . 2 . . . . . . . . . . . 1 . . . . . . . Fabricators 2 | . . . . . . . . . . . . . . . . . . . . 2 . . . . . . . . . Prioritize 1 | . . . . . . . . . . . . . . . . . . . . 1 . . . . . . . . . Recompile 1 | . . . . . . . . . . . . . . . . . . . . 1 . . . . . . . . . Repair Stations 1 | . . . . . . . . . . . . . . . . . . . . . . 1 . . . . . . . Mechanics 1 | . . . . . . . . . . . . . . . . . . . . . . 1 . . . . . . . Recycling Units 16 | . 2 . . . . . . . . 12 . . . . . . . . 1 . . 1 . . . . . . . Reject 6 | . 1 . . . . . . . . 5 . . . . . . . . . . . . . . . . . . . Recyclers 2 | . . . . . . . . . . 1 . . . . . . . . . . . 1 . . . . . . . Mask 2 | . . . . . . . . . . 1 . . . . . . . . 1 . . . . . . . . . . Tunnel 6 | . 1 . . . . . . . . 5 . . . . . . . . . . . . . . . . . . . Scanalyzers . | . . . . . . . . . . . . . . . . . . . . . . . . . . . . . . Garrison Access 4 | . . . . . . . . . . . . . . . . . . . . . . 1 1 . . . 2 . . Jam 4 | . . . . . . . . . . . . . . . . . . . . . . 1 1 . . . 2 . . Data Cores Recovered 5 | . 1 . 1 . . . . . . . . . . . . . . . . 1 . . . . . . 1 1 . Used 1 | . 1 . . . . . . . . . . . . . . . . . . . . . . . . . . . . Hacking Detections 76 | . 8 . 6 . . 1 2 2 2 8 . 2 . . . . 4 . 4 6 . 10 8 1 3 2 5 2 . Full Trace Events 10 | . . . 1 . . . . 1 . 5 . . . . . . . . . . . 1 . . 1 . 1 . . Feedback Events 2 | . . . . . . . . . . 1 . . . . . . . . . . . 1 . . . . . . . Corruption 2 | . . . . . . . . . . 1 . . . . . . . . . . . 1 . . . . . . . Feedback Blocked . | . . . . . . . . . . . . . . . . . . . . . . . . . . . . . . Robot Schematics Acquired 4 | . . . . . . . . . . . . . . . . . . . . . . . . 4 . . . . . Robots Built . | . . . . . . . . . . . . . . . . . . . . . . . . . . . . . . Authchips . | . . . . . . . . . . . . . . . . . . . . . . . . . . . . . . Time . | . . . . . . . . . . . . . . . . . . . . . . . . . . . . . . Total Robot Build Rating . | . . . . . . . . . . . . . . . . . . . . . . . . . . . . . . Part Schematics Acquired 12 | . 1 . . . . . . . . . . . . . . . . . . . . 2 . 9 . . . . . Parts Built 1 | . . . . . . . . . . . . . . . . . . . . 1 . . . . . . . . . Authchips 1 | . . . . . . . . . . . . . . . . . . . . 1 . . . . . . . . . Time 25 | . . . . . . . . . . . . . . . . . . . . 25 . . . . . . . . . Total Part Build Rating 1 | . . . . . . . . . . . . . . . . . . . . 1 . . . . . . . . . Part Studies Acquired 8 | . . . 3 . . . . . . . . . . . . . 2 . . . . 1 1 . . 1 . . . Parts Repaired 3 | . . . 1 . . . . . 1 . . . . . . . . . . . . 1 . . . . . . . Time 190 | . . . 26 . . . . . 56 . . . . . . . . . . . . 108 . . . . . . . Parts Recycled . | . . . . . . . . . . . . . . . . . . . . . . . . . . . . . . Recycled Matter . | . . . . . . . . . . . . . . . . . . . . . . . . . . . . . . Retrieved Matter . | . . . . . . . . . . . . . . . . . . . . . . . . . . . . . . Retrieved Components 1 | . . . . . . . . . . . . . . . . . . . 1 . . . . . . . . . . Parts Scanalyzed 3 | . . . . . . . . . . . . . . . . . 1 . . . . 2 . . . . . . . Part Schematics Acquired 2 | . . . . . . . . . . . . . . . . . . . . . . 2 . . . . . . . Parts Damaged 1 | . . . . . . . . . . . . . . . . . 1 . . . . . . . . . . . . Bothacking | -11 -10 -10 -9 -9 -9 -8 -8 -7 -7 -7 -7 -5 -5 -5 -5 -4 -4 -4 -4 -4 -4 -3 -3 -3 -2 -2 -1 -1 -1 ------------ Run | Yrd Mat Min Mat Min Exi Min Mat Fac Sto Rec Scr Fac Upp Upp War Pro Fac Was Fac Arm Lab Res Qua Frg Res Tes Acc Com Ac0 Used RIF Installer . | . . . . . . . . . . . . . . . . . . . . . . . . . . . . . . Robots Hacked 2 | . . . . . . . . . . . . . . . . . . . . . . 1 . . . . . 1 . Non-combat 1 | . . . . . . . . . . . . . . . . . . . . . . . . . . . . 1 . Combat . | . . . . . . . . . . . . . . . . . . . . . . . . . . . . . . Robot Hacks Applied 2 | . . . . . . . . . . . . . . . . . . . . . . . . . . . . 2 . parse_system 1 | . . . . . . . . . . . . . . . . . . . . . . . . . . . . 1 . find_station 1 | . . . . . . . . . . . . . . . . . . . . . . . . . . . . 1 . Manual 2 | . . . . . . . . . . . . . . . . . . . . . . 1 . . . . . 1 . Relay Couplers Released 7 | . . . . . . . . . . . . . . . . . . . . . . . . 2 1 . 4 . . Machine Destruction 7 | . . . . . . . . . . . . . . . . . . . . . . . . 2 1 . 4 . . Fabnet Peak Effective % . | . . . . . . . . . . . . . . . . . . . . . . . . . . . . . . Robots Rewired 11 | . . . . . . . . . . . . . . . . . . . . 11 . . . . . . . . . Allies Hacked 3 | . . . . . . . . . . . . . . . . . . . . 3 . . . . . . . . . Hacks Repelled . | . . . . . . . . . . . . . . . . . . . . . . . . . . . . . . Allies | -11 -10 -10 -9 -9 -9 -8 -8 -7 -7 -7 -7 -5 -5 -5 -5 -4 -4 -4 -4 -4 -4 -3 -3 -3 -2 -2 -1 -1 -1 -------- Run | Yrd Mat Min Mat Min Exi Min Mat Fac Sto Rec Scr Fac Upp Upp War Pro Fac Was Fac Arm Lab Res Qua Frg Res Tes Acc Com Ac0 Total Allies 26 | . . 3 . . . . . . . . . . . . . . . . . 21 . 1 . . . . . 1 . Largest Group 13 | . . 3 3 . . . . . . . . . . . . . . . . 13 . 1 . . . . . 1 . Highest-Rated Group 685 | . . 40 40 . . . . . . . . . . . . . . . . 685 . 23 . . . . . 50 . Highest-Rated Ally 68 | . . 16 16 . . . . . . . . . . . . . . . . 68 . 23 . . . . . 50 . Total Orders 402 | . . . . . . . . . . . 251 4 . . 3 . 1 . 1 6 . . . . . . . . 136 STAY 22 | . . . . . . . . . . . 17 . . . . . . . . 4 . . . . . . . . 1 ROAM 41 | . . . . . . . . . . . 27 . . . 1 . . . . . . . . . . . . . 13 FOLLOW 8 | . . . . . . . . . . . . . . . . . . . . 2 . . . . . . . . 6 EXPLORE 128 | . . . . . . . . . . . 93 2 . . 1 . 1 . 1 . . . . . . . . . 30 RETURN 203 | . . . . . . . . . . . 114 2 . . 1 . . . . . . . . . . . . . 86 Ally Attacks 1085 | . . . 46 . . . . . . . 492 1 . . . . . . . 79 . . . . . . . . 467 Total Damage 49483 | . . . 316 . . . . . . . 24294 . . . . . . . . 2927 . . . . . . . . 21946 Kills 210 | . . . 7 . . . . . . . 173 . . . . . . . . 12 . . . . . . . . 18 Allies Corrupted 11 | . . . . . . . . . . . . . . . . . . . . 4 . . . . . . . . 7 Allies Melted . | . . . . . . . . . . . . . . . . . . . . . . . . . . . . . . Turrets Deployed 4 | . . . . . . . . . . . 4 . . . . . . . . . . . . . . . . . . Intel | -11 -10 -10 -9 -9 -9 -8 -8 -7 -7 -7 -7 -5 -5 -5 -5 -4 -4 -4 -4 -4 -4 -3 -3 -3 -2 -2 -1 -1 -1 ------- Run | Yrd Mat Min Mat Min Exi Min Mat Fac Sto Rec Scr Fac Upp Upp War Pro Fac Was Fac Arm Lab Res Qua Frg Res Tes Acc Com Ac0 Active Infowar (turns) 122190 | 81 2491 887 1795 454 1100 444 1043 771 934 1694 50973 373 1166 808 1207 . 431 109 456 1428 22 2384 803 3335 1184 737 17987 26207 886 Optics 92271 | . . . . . . . . 755 478 . 37056 . . . . . 427 109 456 1428 22 1287 502 2946 988 737 17987 26207 886 Sensors 8085 | . . . . . . . . . . . . 82 824 473 932 . . . 66 19 22 1996 684 2217 768 . . 2 . Terrain 28438 | . . . . . . . 1043 702 642 . 24247 333 601 432 . . 24 . . 47 . 302 . . . . . 65 . Structural 4113 | . . . . . . . . . . . . . . . . . 409 82 269 796 22 1846 436 253 . . . . . Traps 394 | . . . . . . . . . . . . . . 134 260 . . . . . . . . . . . . . . Seismic 15923 | 81 2491 887 1795 454 1100 444 483 694 639 1694 5161 . . . . . . . . . . . . . . . . . . T.N.C. 1 | . . . . . . . . . . . . . . . . . . . . . . 1 . . . . . . . Triangulation 3551 | . . . . . . . . . . . 2659 201 562 79 50 . . . . . . . . . . . . . . Jamming 5135 | . . . . . . . . . . . . . . . . . . 24 22 354 . 409 128 138 275 82 773 2930 . ECM 246 | . . . . . . . . . . . . . . . . . . . 32 23 . 191 . . . . . . . Robot Analysis Total 3 | . . . . . . . . . . 3 . . . . . . . . . . . . . . . . . . . Derelict Logs Recovered 4 | . . 2 . 1 . . . . . . . . . 1 . . . . . . . . . . . . . . . Drone Launches 232 | . . . . . . . . . . . 78 3 . . 2 . 1 . 1 . . . . . . . . . 147 Drone Recoveries 217 | . . . . . . . . . . . 76 3 . . 2 . . . . . . . . . . . . . 136 Exploration | -11 -10 -10 -9 -9 -9 -8 -8 -7 -7 -7 -7 -5 -5 -5 -5 -4 -4 -4 -4 -4 -4 -3 -3 -3 -2 -2 -1 -1 -1 ------------- Run | Yrd Mat Min Mat Min Exi Min Mat Fac Sto Rec Scr Fac Upp Upp War Pro Fac Was Fac Arm Lab Res Qua Frg Res Tes Acc Com Ac0 Turns Passed 136206 | 192 3800 1247 2400 454 3511 993 1043 771 935 1694 52716 411 1232 930 1691 124 465 109 456 1428 22 2511 816 3394 1207 737 17987 26217 6713 Spaces Moved 63357 | 76 1082 596 1001 297 1669 915 305 314 254 730 18313 242 451 606 510 312 411 120 272 1036 16 2513 744 2796 639 427 4789 17109 4812 Core 497 | 3 . . . . . 492 . . . . 1 . . . . . . . . . . . . 1 . . . . . Treads 22129 | 73 703 . 162 . 836 202 305 313 254 730 17403 . . . 29 . . . . . . . . . . . . 1119 . Legs 29740 | . . . . . 178 . . . . . 909 242 451 606 429 . . . . . . . . 268 639 427 4789 15990 4812 Wheels 3062 | . 379 596 839 297 655 . . 1 . . . . . . . . 124 3 127 41 . . . . . . . . . Hover 6842 | . . . . . . . . . . . . . . . 1 . 78 117 145 701 16 2513 744 2527 . . . . . Flight 1087 | . . . . . . 221 . . . . . . . . 51 312 209 . . 294 . . . . . . . . . Fastest Speed 29 | 50 160 200 135 140 80 40 200 200 213 213 160 98 81 81 29 29 29 67 100 45 145 42 41 44 100 100 113 106 110 Average Speed 144 | 155 274 200 180 140 169 79 218 207 225 213 200 113 97 124 159 29 63 73 115 67 145 46 63 58 100 106 127 126 111 Slowest Speed 1900 | 160 480 200 360 140 360 200 240 280 280 213 1900 182 98 186 400 29 145 117 130 166 145 257 136 1000 110 113 203 490 186 Overloaded Moves 27 | . . . . . . . . . . . . . 3 23 1 . . . . . . . . . . . . . . Propulsion Burnouts . | . . . . . . . . . . . . . . . . . . . . . . . . . . . . . . Robots Hopped 21 | . . . . . . . . . . . 10 . . . 11 . . . . . . . . . . . . . . Potential Cave-ins 90 | . . . . . . . . . . . 3 . . . 30 . . . . . . 8 6 27 7 . 7 . 2 Cave-ins Triggered 5 | . . . . . . . . . . . . . . . 2 . . . . . . . . 1 . . 1 . 1 Teleports 5 | . . . . . . . . . . . . . . . . . . . . . . . 1 1 . . . 1 2 Exploration Rate (%) 58 | 4 97 94 80 50 91 41 24 9 49 98 99 12 50 67 92 55 12 96 12 51 6 59 68 41 37 56 98 97 99 Regions Visited 29 Branch Regions 18 Pre-discovered Areas 12 | . 4 1 . . 1 . . . . 5 1 . . . . . . . . . . . . . . . . . . Known Exits Taken 11 | . 1 . 1 . . 1 1 1 . . 1 1 . 1 . . . . . . . 1 1 1 . . . . . Unknown Exits Taken 16 | 1 . 1 . 1 1 . . . 1 1 . . 1 . 1 1 . . 1 1 1 . . . 1 1 1 1 . Scrap Searched 11 | . . 1 . . . 1 . . . . 5 . 2 1 . 1 . . . . . . . . . . . . . Spaces Dug 5406 | . 2 20 23 . . . 1 2 2 6 174 13 2 1 31 2 11 . 11 15 . 73 13 120 40 43 2103 1761 937 Terrain Destroyed 34390 | . 99 68 357 5 . 10 19 6 16 21 319 16 21 43 201 2 27 . 17 82 . 355 165 367 614 273 8923 10729 11635 Melee 205 | . . . . . . . . . . . 152 13 2 1 . 2 11 . . . . . 9 15 . . . . . Projectile 1854 | . 2 . . . . 5 19 5 14 20 164 1 . . 77 . 8 . 17 48 . 157 36 322 225 95 261 262 116 AOE 32258 | . 97 68 357 5 . 5 . . . . . . 19 42 122 . 8 . . 33 . 198 120 30 389 175 8658 10463 11469 Terrain Rammed . | . . . . . . . . . . . . . . . . . . . . . . . . . . . . . . Walls Destroyed . | . . . . . . . . . . . . . . . . . . . . . . . . . . . . . . Machines Disabled . | . . . . . . . . . . . . . . . . . . . . . . . . . . . . . . Actions | -11 -10 -10 -9 -9 -9 -8 -8 -7 -7 -7 -7 -5 -5 -5 -5 -4 -4 -4 -4 -4 -4 -3 -3 -3 -2 -2 -1 -1 -1 --------- Run | Yrd Mat Min Mat Min Exi Min Mat Fac Sto Rec Scr Fac Upp Upp War Pro Fac Was Fac Arm Lab Res Qua Frg Res Tes Acc Com Ac0 Total 102585 | 111 1798 632 1509 322 2148 1097 626 394 491 804 32925 308 1195 755 1172 340 530 141 376 1522 15 3560 996 4146 1003 609 16256 21042 5762 Wait 29068 | 3 574 6 377 12 164 25 256 9 99 22 11635 7 693 74 336 22 16 8 44 98 . 599 87 504 41 5 10746 2282 324 Move 63289 | 75 1081 595 1000 296 1668 914 304 313 253 729 18292 241 450 605 491 311 411 119 271 1035 15 2512 743 2794 638 427 4787 17108 4811 Hop 16 | . . . . . . . . . . . 10 . . . 6 . . . . . . . . . . . . . . Pick Up 1611 | 4 33 5 13 2 65 24 7 10 10 2 929 2 1 20 28 . 13 2 5 30 . 12 22 80 11 4 19 224 34 Fast Attach 430 | 7 4 . 9 . 19 7 7 2 2 1 27 2 4 8 27 2 20 3 9 25 . 46 11 37 9 16 47 45 34 Attach 250 | . 3 1 1 1 11 5 2 3 3 1 26 3 . 4 23 . 2 1 2 6 . 22 7 33 7 . 10 41 32 Detach 170 | . 1 . 1 . 8 1 2 1 2 . 24 . . 5 10 . 1 2 . 6 . 19 2 18 4 1 5 43 14 Swap 644 | . 10 5 14 . 6 2 8 16 29 8 67 14 12 11 21 2 12 2 5 14 . 64 26 77 44 7 24 85 59 Drop 1743 | . 12 5 17 2 70 26 12 12 9 3 942 3 5 11 26 1 11 4 4 35 . 19 33 106 7 15 57 254 42 Fire 4156 | 22 80 12 77 9 137 93 28 28 84 38 230 23 16 16 193 . 8 . 27 129 . 224 42 374 241 129 555 930 411 Melee 799 | . . . . . . . . . . . 623 13 12 1 6 2 36 . . . . . 23 78 1 1 . 3 . Ram . | . . . . . . . . . . . . . . . . . . . . . . . . . . . . . . Kick 2 | . . . . . . . . . . . . . . . 1 . . . . . . . . . . . . . 1 Crush 4 | . . 3 . . . . . . . . . . . . 1 . . . . . . . . . . . . . . Escape Stasis 143 | . . . . . . . . . . . . . . . 1 . . . 9 26 . 43 . 45 . 4 6 9 . Rewire 134 | . . . . . . . . . . . . . . . . . . . . 116 . . . . . . . 18 . Trap 6 | . . . . . . . . . . . . . 2 . 2 . . . . 2 . . . . . . . . . Miscellaneous 120 | . . . . . . . . . . . 120 . . . . . . . . . . . . . . . . . . Route ------- -11/Scrapyard -10/Materials (discovered 6 exits: *Mat x3 / *Min x2 / *Sub) -10/Mines (discovered 3 exits: *Mat x2 / *Sub) -9/Materials (discovered 5 exits: *Mat x3 / *Min x2) -9/Mines (discovered 2 exits: *Exi / [*Zio]) -9/Exiles -8/Mines -8/Materials (discovered 2 exits: *Fac x2) -7/Factory -7/Storage -7/Recycling (discovered 2 exits: *Fac / *Scr) -7/Scraptown (discovered 2 exits: *Fac x2) -5/Factory (discovered 2 exits: *Upp x2) -5/Upper Caves -5/Upper Caves (discovered 2 exits: *Fac / *War) -5/Warlord -4/Proximity Caves -4/Factory -4/Waste -4/Factory (discovered 2 exits: [*Ext] / *Arm) -4/Armory -4/Lab -3/Research -3/Quarantine (discovered 3 exits: *Res / *Sec / *Frg) -3/Protoforge -2/Research -2/Testing -1/Access (discovered 2 exits: [*Sur] / *Com) -1/Command (discovered 3 exits: [*Sur x2] / *Ac0) -1/Access_0 0b11 Command History --------- Turn | Location | Event 6 | -11/Scrapyard | Discovered new exit (range 14) 193 | -11/Scrapyard | Entered Materials 308 | -10/Materials | Build established: Mutant 632 | -10/Materials | Discovered new exit (range 10) 1635 | -10/Materials | Discovered new exit (range 11) 2185 | -10/Materials | Discovered new exit (range 14) 2353 | -10/Materials | Lost 3 parts (1p2n) 2402 | -10/Materials | Discovered new exit (range 16) 2778 | -10/Materials | Learned location of Mines (-8) 2815 | -10/Materials | Learned Storage security intel 2844 | -10/Materials | Identified exit to Subcaves 2844 | -10/Materials | Identified exit to Mines 2872 | -10/Materials | Learned location of 1 exit from Recycling 2890 | -10/Materials | Learned location of Mines (-10) 2917 | -10/Materials | Learned location of 2 exits from Materials 2953 | -10/Materials | Learned Storage emergency access door positions 3215 | -10/Materials | Core integrity fell below 50% 3993 | -10/Materials | Entered Mines 3999 | -10/Mines | Met a Derelict bent on vengeance 4025 | -10/Mines | Discovered new exit (range 12) 4129 | -10/Mines | Build established: Scavenger-Mutant 4262 | -10/Mines | Discovered new exit (range 14) 4305 | -10/Mines | Found the Drone Emporium 4314 | -10/Mines | Found Prototype Device 4315 | -10/Mines | Identified Splice Drone Bay 4592 | -10/Mines | Assisted by bots powering up and referring to "LRC-V3" 4646 | -10/Mines | Discovered exit to Subcaves (range 6) 4928 | -10/Mines | Met a Derelict shopkeep closing up shop 4937 | -10/Mines | Learned location of Storage (-7) 5240 | -10/Mines | Entered Materials 5240 | -9/Materials | Accompanied by 3 allies 5240 | -9/Materials | Evolved 2 slots: Propulsion x1, Weapon x1 5241 | -9/Materials | Identified exit to Mines 5242 | -9/Materials | Identified exit to Materials 5400 | -9/Materials | Central database locked down 5647 | -9/Materials | Repaired Grenade Launcher 6354 | -9/Materials | Build established: Scavenger-Gunner 6900 | -9/Materials | Discovered exit to Materials (range 12) 7044 | -9/Materials | Build established: Mutant 7240 | -9/Materials | First assault squad dispatched 7640 | -9/Materials | Entered Mines 7695 | -9/Mines | Learned location of 1 exit from Materials 7727 | -9/Mines | Found a damaged Exp. Sensor Array with a note attached 7731 | -9/Mines | Found Prototype Device 7784 | -9/Mines | A weapon hastily lodged in a ceiling crevice suddenly fell to the ground 7827 | -9/Mines | Deemed a non-threat by the Exiles lab entrance 7829 | -9/Mines | Discovered new exit (range 5) 7959 | -9/Mines | Found a Scrap Suit stashed away for nefarious purposes 7963 | -9/Mines | Found Scrap Suit 7976 | -9/Mines | A Derelict revealed a hidden shortcut to a safe place 8039 | -9/Mines | Build established: Gunner 8094 | -9/Mines | Entered Exiles 8129 | -9/Exiles | Met 8R-AWN 8149 | -9/Exiles | Met EX-HEX 8206 | -9/Exiles | Met EX-DEC 8321 | -9/Exiles | Learned location of Zion (-7) 8354 | -9/Exiles | Met EX-BIN 8370 | -9/Exiles | Aligned with FarCom system 8372 | -9/Exiles | Given EX-Vault access code 8407 | -9/Exiles | Opened EX-Vault 8415 | -9/Exiles | Found Deploy-a-Sentry 8418 | -9/Exiles | Found Deploy-a-Sentry 8420 | -9/Exiles | Found Deploy-a-Sentry 8422 | -9/Exiles | Found Superbattery 8457 | -9/Exiles | Warned to stay clear of 0b10 Research branches 8544 | -9/Exiles | Discovered new exit (range 14) 8670 | -9/Exiles | Found XL Autogun Array 8923 | -9/Exiles | Attacked by the Exiles 9127 | -9/Exiles | Destroyed 8R-AWN 9133 | -9/Exiles | Found Prototype Processor 9140 | -9/Exiles | Lost 7 parts (1p3n1u2w) 9147 | -9/Exiles | Identified Exp. Sensor Array 9152 | -9/Exiles | Found Prototype Device 9152 | -9/Exiles | Identified AS-neutralizer No. 17b 9164 | -9/Exiles | Found Prototype Ballistic Gun 9164 | -9/Exiles | Identified 8R-AWN's Boregun 9232 | -9/Exiles | Found 8R-AWN's Boregun 9329 | -9/Exiles | Build established: Mutant 9471 | -9/Exiles | Core integrity fell below 50% 9898 | -9/Exiles | Build established: Scavenger-Gunner 10019 | -9/Exiles | Destroyed EX-BIN 10200 | -9/Exiles | Destroyed EX-DEC 10215 | -9/Exiles | Destroyed EX-HEX 10505 | -9/Exiles | Found Prototype Energy Gun 10505 | -9/Exiles | Identified AWS/EX-DEC 10545 | -9/Exiles | Found Prototype Processor 10619 | -9/Exiles | Identified Exp. Targeting Computer 10631 | -9/Exiles | Found Prototype Device 10670 | -9/Exiles | Identified System Purifier 10676 | -9/Exiles | Identified Exp. Core Analyzer 10797 | -9/Exiles | Found Prototype Protection 10807 | -9/Exiles | Build established: Scavenger-Mutant 10811 | -9/Exiles | Identified 8R-AWN's Armor/EX 11059 | -9/Exiles | Found Deploy-a-Sentry 11382 | -9/Exiles | Build established: Scavenger-Gunner 11605 | -9/Exiles | Stole three prototypes: Superbattery, XL Autogun Array, Deploy-a-Sentry 11605 | -9/Exiles | Entered Mines 11630 | -8/Mines | 1C-UTU came to Exiles' defense 11899 | -8/Mines | Build established: Mutant 12506 | -8/Mines | Discovered exit to Materials (range 8) 12598 | -8/Mines | Entered Materials 12598 | -8/Materials | Evolved 2 slots: Utility x2 12599 | -8/Materials | Identified exit to Factory 13033 | -8/Materials | Build established: Scavenger-Gunner 13534 | -8/Materials | Discovered exit to Factory (range 3) 13641 | -8/Materials | Entered Factory 13641 | -7/Factory | Evolved 2 slots: Utility x2 13939 | -7/Factory | Build established: Scavenger-Skirmisher 14313 | -7/Factory | Discovered new exit (range 14) 14406 | -7/Factory | Identified exit to Storage 14412 | -7/Factory | Entered Storage 14967 | -7/Storage | Repaired Rnf. Fission Core 15110 | -7/Storage | Discovered new exit (range 15) 15336 | -7/Storage | Used back door to open Recycling access 15347 | -7/Storage | Entered Recycling 15348 | -7/Recycling | Identified exit to Factory 15391 | -7/Recycling | Build established: Scavenger-Gunner 16990 | -7/Recycling | Scanned before Scraplab entrance 17019 | -7/Recycling | Entered Scraplab 17036 | -7/Recycling | Discovered new exit (range 2) 17041 | -7/Recycling | Entered Scraptown 17041 | -7/Scraptown | System corruption cleaned by C-Scrubber 17487 | -7/Scraptown | Discovered exit to Factory (range 11) 17640 | -7/Scraptown | Visited Red Mages 17710 | -7/Scraptown | Visited Fellowship of the Rings 17742 | -7/Scraptown | Visited Awakened 17808 | -7/Scraptown | Visited Spacefarers 17896 | -7/Scraptown | Visited CR-KLE's Repair Center 17928 | -7/Scraptown | Visited Cave Peace 19078 | -7/Scraptown | Turned away by UFD registrar 19227 | -7/Scraptown | Visited Cyclists 21038 | -7/Scraptown | CR-KLE repaired 11 parts 21440 | -7/Scraptown | DAS Turret deployed 21443 | -7/Scraptown | DAS Turret deployed 21445 | -7/Scraptown | DAS Turret deployed 21721 | -7/Scraptown | Build established: Scavenger-Mutant 22033 | -7/Scraptown | Attacked by Scraptown defenders 22162 | -7/Scraptown | DAS Turret deployed 22214 | -7/Scraptown | Attached CPS modules to Triborg. 22232 | -7/Scraptown | Allies destroyed Triborg 22251 | -7/Scraptown | Lost 5 parts (2n1u2w) 22272 | -7/Scraptown | Found Scrap Suit 22293 | -7/Scraptown | Found Tri-treads 22459 | -7/Scraptown | Found Prototype Device 22561 | -7/Scraptown | Identified Exp. Recalibrator 22606 | -7/Scraptown | Attached CPS modules to Optimus. 22606 | -7/Scraptown | Allies destroyed Optimus 22830 | -7/Scraptown | Found Scrap Suit 23038 | -7/Scraptown | Build established: Scavenger-Gunner 23905 | -7/Scraptown | Core integrity fell below 50% 24413 | -7/Scraptown | Found Scrap Suit 24421 | -7/Scraptown | Found Scrap Suit 24844 | -7/Scraptown | Found Scrap Suit 25481 | -7/Scraptown | Found Scrap Suit 25565 | -7/Scraptown | Found Scrap Suit 27074 | -7/Scraptown | Found Scrap Suit 27472 | -7/Scraptown | Found Scrap Suit 27566 | -7/Scraptown | Found Scrap Suit 27657 | -7/Scraptown | Found Scrap Suit 27815 | -7/Scraptown | Found Scrap Suit 27827 | -7/Scraptown | Found Scrap Suit 30120 | -7/Scraptown | Found Scrap Suit 30126 | -7/Scraptown | Found Scrap Suit 30660 | -7/Scraptown | Found Scrap Suit 32109 | -7/Scraptown | Found Scrap Suit 32985 | -7/Scraptown | Found Scrap Suit 33575 | -7/Scraptown | Found Scrap Suit 33643 | -7/Scraptown | Found Scrap Suit 36064 | -7/Scraptown | Found Scrap Suit 36119 | -7/Scraptown | Found Scrap Suit 40452 | -7/Scraptown | Discovered exit to Factory (range 60) 41557 | -7/Scraptown | Entered Cyclist Reading Room 41883 | -7/Scraptown | Build established: Scavenger-Mutant 42217 | -7/Scraptown | Visited Curators Association 42230 | -7/Scraptown | Found Prototype Slashing Weapon 42230 | -7/Scraptown | Identified DM-GVY's Chainsaw 42265 | -7/Scraptown | Found Potential Leg 42303 | -7/Scraptown | Found Siege Articulator 42400 | -7/Scraptown | Visited Junk Repository 42579 | -7/Scraptown | Visited Chapter 10 42607 | -7/Scraptown | Visited Infowarlord's Domain 42814 | -7/Scraptown | Visited Derelict Rescue Squad 42881 | -7/Scraptown | Found DCF Scrap (31 items) 42953 | -7/Scraptown | Visited DA-N13 Charitable Foundation 43511 | -7/Scraptown | Visited Supply Room 43543 | -7/Scraptown | Visited Scrap Suit Storage 43624 | -7/Scraptown | Visited Abandonware Association 43646 | -7/Scraptown | Learned abandonware demo "REPAIR.EXE" 44098 | -7/Scraptown | Found Exp. Terrain Scanner 44677 | -7/Scraptown | Found PL-3XN's Ring of Power 45019 | -7/Scraptown | Found Relay Coupler [Proto] 49203 | -7/Scraptown | Build established: Scavenger-Assassin 49700 | -7/Scraptown | Found Scrap Suit 49706 | -7/Scraptown | Found Scrap Suit 49730 | -7/Scraptown | Found Scrap Suit 49745 | -7/Scraptown | Found Scrap Suit 49748 | -7/Scraptown | Found Scrap Suit 49758 | -7/Scraptown | Found Scrap Suit 50012 | -7/Scraptown | Found Scrap Suit 51016 | -7/Scraptown | Build established: Scavenger-Skirmisher 51614 | -7/Scraptown | Build established: Scavenger-Assassin 57227 | -7/Scraptown | Found Scrap Suit 57347 | -7/Scraptown | Found Scrap Suit 57357 | -7/Scraptown | Found Scrap Suit 59909 | -7/Scraptown | Build established: Scavenger-Mutant 62346 | -7/Scraptown | Found DRS Beacon 62349 | -7/Scraptown | Found DRS Beacon 69757 | -7/Scraptown | Entered Factory 69757 | -5/Factory | Evolved 4 slots: Power x1, Propulsion x2, Weapon x1 69944 | -5/Factory | Unchained authorized (CL-0N3) 70013 | -5/Factory | Discovered new exit (range 15) 70096 | -5/Factory | U-05 Engineer reconstituted as Martyr 70101 | -5/Factory | Martyr reconstituted as CL-0N3 70162 | -5/Factory | Identified exit to Upper Caves 70168 | -5/Factory | Entered Upper Caves 70357 | -5/Upper Caves | Unchained authorized (CL-0N3) 70397 | -5/Upper Caves | Build established: Scavenger-Gunner 70950 | -5/Upper Caves | Encountered a Warlord checkpoint 71382 | -5/Upper Caves | Discovered new exit (range 5) 71400 | -5/Upper Caves | Entered another Upper Caves area 71400 | -5/Upper Caves | Discovered new exit (range 5) 71420 | -5/Upper Caves | Build established: Scavenger-Assassin 71436 | -5/Upper Caves | Identified exit to Warlord 71669 | -5/Upper Caves | Encountered a Warlord checkpoint 71675 | -5/Upper Caves | Spotted B-75 Beast 71756 | -5/Upper Caves | Build established: Scavenger-Gunner 71858 | -5/Upper Caves | Encountered a Master Thief 71859 | -5/Upper Caves | Encountered a Master Thief 71860 | -5/Upper Caves | Encountered a Master Thief 71860 | -5/Upper Caves | Encountered a Master Thief 71863 | -5/Upper Caves | Potential Leg stolen by Master Thief 71864 | -5/Upper Caves | Imp. VSS Leg stolen by Master Thief 71866 | -5/Upper Caves | Graviton Reactor stolen by Master Thief 71868 | -5/Upper Caves | DM-GVY's Chainsaw stolen by Master Thief 72330 | -5/Upper Caves | Entered Warlord 72420 | -5/Warlord | Discovered new exit (range 25) 72504 | -5/Warlord | Attacked by Warlord forces 72686 | -5/Warlord | Warlord's base attacked by MAIN.C 72956 | -5/Warlord | Crushed by falling debris 72983 | -5/Warlord | Spotted MQ-ZZV(g) 73009 | -5/Warlord | Destroyed MQ-ZZV(g) 73036 | -5/Warlord | Warlord forces counterattacked 73361 | -5/Warlord | Warlord base infiltrated, sounded retreat 73365 | -5/Warlord | Found Prototype Energy Cannon 73365 | -5/Warlord | Identified Vortex Cannon 73367 | -5/Warlord | Found Vortex Cannon 73376 | -5/Warlord | Found Prototype Launcher 73470 | -5/Warlord | Identified Vortex Catalyst Activator 73477 | -5/Warlord | Spotted Executioner 73479 | -5/Warlord | Destroyed Executioner 73512 | -5/Warlord | Spotted Striker 73524 | -5/Warlord | Destroyed Striker 73527 | -5/Warlord | Lost 3 parts (2n1w) 73545 | -5/Warlord | Destroyed 19 combat bots 73553 | -5/Warlord | Found Prototype Device 73606 | -5/Warlord | Identified Adv. Kinecellerator 73653 | -5/Warlord | Found Prototype Reactor 73676 | -5/Warlord | Found Prototype Hackware 73730 | -5/Warlord | Spotted Striker 73731 | -5/Warlord | Spotted Executioner 73755 | -5/Warlord | Attached CPS modules to Striker. 73768 | -5/Warlord | Destroyed Striker 73790 | -5/Warlord | Spotted Executioner 73792 | -5/Warlord | Lost 3 parts (1p2u) 73804 | -5/Warlord | Destroyed Executioner 73817 | -5/Warlord | Destroyed Executioner 73876 | -5/Warlord | Destroyed 21 combat bots 73942 | -5/Warlord | Spotted Executioner 73948 | -5/Warlord | Attached CPS modules to Executioner. 73952 | -5/Warlord | Destroyed Executioner 73976 | -5/Warlord | Spotted B-86 Titan 73978 | -5/Warlord | Spotted B-75 Beast 73993 | -5/Warlord | Core integrity fell below 50% 74005 | -5/Warlord | Crushed by falling debris 74005 | -5/Warlord | System corruption reached 10% 74006 | -5/Warlord | Spotted Striker 74008 | -5/Warlord | Spotted Striker 74015 | -5/Warlord | Spotted Executioner 74016 | -5/Warlord | Core integrity fell below 20% 74019 | -5/Warlord | Spotted Striker 74021 | -5/Warlord | Entered Proximity Caves 74050 | -4/Proximity Caves | Spotted B-86 Titan 74051 | -4/Proximity Caves | Lost 10 parts (2n5u3w) 74141 | -4/Proximity Caves | Discovered new exit (range 11) 74145 | -4/Proximity Caves | Entered Factory 74145 | -4/Factory | Evolved 2 slots: Propulsion x1, Utility x1 74155 | -4/Factory | Identified Vortex Chain Reactor 74220 | -4/Factory | Spotted B-86 Titan 74537 | -4/Factory | Discovered new exit (range 3) 74610 | -4/Factory | Sucked down chute 74610 | -4/Factory | Entered Waste 74615 | -4/Waste | 1 allies followed down the chute 74623 | -4/Waste | Spotted C-40 Crusher 74625 | -4/Waste | EMP discharged 74625 | -4/Waste | System corruption reached 10% 74625 | -4/Waste | Spotted C-40 Crusher 74638 | -4/Waste | Crushed by Compactor (1 part destroyed, 2 dropped) 74638 | -4/Waste | Spotted C-40 Crusher 74654 | -4/Waste | Spotted C-40 Crusher 74677 | -4/Waste | Spotted C-40 Crusher 74677 | -4/Waste | Spotted C-40 Crusher 74698 | -4/Waste | Discovered new exit (range 10) 74719 | -4/Waste | Entered Factory 74873 | -4/Factory | Discovered new exit (range 47) 75162 | -4/Factory | Discovered new exit (range 10) 75175 | -4/Factory | Entered Armory 75206 | -4/Armory | Lost 5 parts (1p2n1u1w) 75296 | -4/Armory | Assisted by bots powering up and referring to "LRC-V3" 75582 | -4/Armory | Lost 5 allies 75985 | -4/Armory | Lost 3 allies 75994 | -4/Armory | Build established: Scavenger-Skirmisher 76057 | -4/Armory | Spotted B-86 Titan 76189 | -4/Armory | Destroyed Armor Guard 76302 | -4/Armory | Destroyed Armor Guard 76322 | -4/Armory | Found Prototype Device 76322 | -4/Armory | Identified Exp. Weapon Cycler 76375 | -4/Armory | Found Fusion Bomb Launcher 76381 | -4/Armory | Found Gamma Bomb Array 76399 | -4/Armory | Discovered new exit (range 5) 76413 | -4/Armory | Found Unknown Protection 76413 | -4/Armory | Identified Hvy. Reflective Plating 76436 | -4/Armory | Fabricated Hcp. Storage Unit (x1) 76493 | -4/Armory | Found Gamma Bomb Array 76494 | -4/Armory | Found Gamma Bomb Array 76496 | -4/Armory | Found Gamma Bomb Array 76585 | -4/Armory | Found Fusion Bomb Launcher 76592 | -4/Armory | Lost 3 parts (2p1u) 76603 | -4/Armory | Entered Lab 76603 | -4/Lab | Discovered new exit (range 9) 76621 | -4/Lab | Unable to decrypt terminal 76625 | -4/Lab | Entered Research 76625 | -3/Research | Evolved 2 slots: Propulsion x1, Utility x1 76640 | -3/Research | Found Quantum Capacitor 76762 | -3/Research | Spotted B-86 Titan 77096 | -3/Research | Central database locked down 77197 | -3/Research | Repaired Helical Railgun 77327 | -3/Research | Spotted B-86 Titan 77449 | -3/Research | Cargo convoy interrupted 77875 | -3/Research | First assault squad dispatched 78536 | -3/Research | Destroyed 13 combat bots 78542 | -3/Research | Lost 3 parts (2p1w) 78868 | -3/Research | Build established: Scavenger-Scout 79114 | -3/Research | Spotted B-90 Cyclops 79133 | -3/Research | Discovered new exit (range 8) 79136 | -3/Research | Identified exit to Quarantine 79136 | -3/Research | Entered Quarantine 79143 | -3/Quarantine | System corruption reached 10% 79178 | -3/Quarantine | Cryocooling Duct disabled 79193 | -3/Quarantine | Ambient heat levels rising (+20) 79193 | -3/Quarantine | Non-combat units ordered to evacuate 79228 | -3/Quarantine | Found Alien Impact Weapon 79264 | -3/Quarantine | Found Fusion Bomb Launcher 79266 | -3/Quarantine | Found Fusion Bomb Launcher 79386 | -3/Quarantine | First assault squad dispatched 79409 | -3/Quarantine | Found Alien Artifact 79433 | -3/Quarantine | Found Alien Artifact 79433 | -3/Quarantine | Identified Hpw. Transdimensional Reconstructor 79433 | -3/Quarantine | Warped through subspace 79451 | -3/Quarantine | Identified Core Stripper 79484 | -3/Quarantine | Found Alien Artifact 79490 | -3/Quarantine | Found Hpw. Transdimensional Reconstructor 79492 | -3/Quarantine | Found Alien Artifact 79539 | -3/Quarantine | Found Alien Slashing Weapon 79539 | -3/Quarantine | Identified Sigix Broadsword 79580 | -3/Quarantine | Found Alien Energy Cannon 79626 | -3/Quarantine | Discovered new exit (range 20) 79704 | -3/Quarantine | Found Alien Artifact 79730 | -3/Quarantine | Found Prototype Launcher 79730 | -3/Quarantine | Identified Hellfire Missile Launcher 79737 | -3/Quarantine | Found Unknown Protection 79737 | -3/Quarantine | Identified Adv. Powered Armor 79783 | -3/Quarantine | Identified exit to Research 79842 | -3/Quarantine | Spotted Fortress 79844 | -3/Quarantine | Destroyed Fortress 79851 | -3/Quarantine | Found Vortex Chain Reactor 79855 | -3/Quarantine | Found Prototype Device 79855 | -3/Quarantine | Identified Exp. EM Shield 79857 | -3/Quarantine | Identified Core Cannon 79861 | -3/Quarantine | Found Prototype Device 79861 | -3/Quarantine | Identified Exp. Force Field 79865 | -3/Quarantine | Found Prototype Device 79865 | -3/Quarantine | Identified Thermal Barrier 79911 | -3/Quarantine | Found Vortex Chain Reactor 79946 | -3/Quarantine | Discovered new exit (range 6) 79946 | -3/Quarantine | Discovered new exit (range 6) 79948 | -3/Quarantine | Identified exit to Protoforge 79950 | -3/Quarantine | Identified exit to Section 7 79952 | -3/Quarantine | Entered Protoforge 79978 | -3/Protoforge | Superfortress began startup sequence 80053 | -3/Protoforge | Spotted Hotshot 80096 | -3/Protoforge | Spotted Overlord 80101 | -3/Protoforge | Spotted AP7-3 80101 | -3/Protoforge | Spotted AP7-3 80140 | -3/Protoforge | Found Prototype Energy Gun 80143 | -3/Protoforge | Additional patrols dispatched to research labs 80143 | -3/Protoforge | Spotted Immortal 80143 | -3/Protoforge | Spotted Immortal 80145 | -3/Protoforge | Spotted Immortal 80162 | -3/Protoforge | Crushed by falling debris 80171 | -3/Protoforge | Identified Cep. Variable Chargecaster 80171 | -3/Protoforge | Identified Transdimensional Reconstructor 80185 | -3/Protoforge | Found Prototype Device 80211 | -3/Protoforge | Spotted Immortal 80217 | -3/Protoforge | Spotted Decapitator 80231 | -3/Protoforge | Destroyed Immortal 80244 | -3/Protoforge | Spotted Decapitator 80245 | -3/Protoforge | Spotted Decapitator 80245 | -3/Protoforge | Spotted Decapitator 80246 | -3/Protoforge | Spotted Decapitator 80247 | -3/Protoforge | Forge Plexus network access discovered 80249 | -3/Protoforge | Destroyed Decapitator 80249 | -3/Protoforge | Destroyed Decapitator 80249 | -3/Protoforge | Destroyed Decapitator 80257 | -3/Protoforge | Destroyed Decapitator 80260 | -3/Protoforge | Found Cep. Concussive Dispersal Blaster 80278 | -3/Protoforge | Destroyed 7 combat bots 80329 | -3/Protoforge | Destroyed Decapitator 80415 | -3/Protoforge | Destroyed Immortal 80475 | -3/Protoforge | Scanned by Researcher 80522 | -3/Protoforge | Core integrity fell below 50% 80527 | -3/Protoforge | Identified Dimensional Node Initializer 80527 | -3/Protoforge | Initialized slip node 80544 | -3/Protoforge | Found Cep. Zero-point Core 80590 | -3/Protoforge | Spotted V891-n 80599 | -3/Protoforge | Found Cep. Deflector Sword 80601 | -3/Protoforge | Found Faulty Cep. Plasma Driver 80604 | -3/Protoforge | Found Cep. Plasma Driver 80611 | -3/Protoforge | Found Cep. Heavy Railcannon 80614 | -3/Protoforge | Found Cep. Plasma Driver 80615 | -3/Protoforge | Found Faulty Cep. Plasma Driver 80616 | -3/Protoforge | Identified Crosscalibrator 80625 | -3/Protoforge | Found Cep. XC Strikerail 80682 | -3/Protoforge | Build established: Scout 80834 | -3/Protoforge | Spotted V116-y 80835 | -3/Protoforge | Spotted V964-h 80835 | -3/Protoforge | Spotted V197-w 80836 | -3/Protoforge | Found Cep. Beam Splitter 80838 | -3/Protoforge | Found Cep. RG22 Armor 80841 | -3/Protoforge | Found Cep. Reaction Jets 81202 | -3/Protoforge | First assault squad dispatched 81234 | -3/Protoforge | Spotted Decapitator 81234 | -3/Protoforge | Spotted Decapitator 81234 | -3/Protoforge | Destroyed Decapitator 81238 | -3/Protoforge | Destroyed Decapitator 81242 | -3/Protoforge | Spotted V939-t 81270 | -3/Protoforge | Found Cep. Antigrav Storage Unit 81273 | -3/Protoforge | Found Cep. NT7 Matterbank 81276 | -3/Protoforge | Found Cep. Matter Streamer 81286 | -3/Protoforge | Found Cep. Chromion Battery 81290 | -3/Protoforge | Found Cep. Chromion Battery 81422 | -3/Protoforge | Spotted Hotshot 81429 | -3/Protoforge | Spotted Hotshot 81432 | -3/Protoforge | Spotted Hotshot 81438 | -3/Protoforge | Spotted Hotshot 81480 | -3/Protoforge | Destroyed Hotshot 81485 | -3/Protoforge | Destroyed Hotshot 81493 | -3/Protoforge | Destroyed Hotshot 81555 | -3/Protoforge | Destroyed Hotshot 81649 | -3/Protoforge | Spotted V414-u 81655 | -3/Protoforge | Found Prototype Device 81655 | -3/Protoforge | Identified Mni. Quantum Capacitor 81658 | -3/Protoforge | Found Cep. Weapon Articulator 81661 | -3/Protoforge | Found Femtoactuators 81664 | -3/Protoforge | Spotted V545-n 81666 | -3/Protoforge | Found Exp. Kinecellerator 81670 | -3/Protoforge | Found Cep. Melee Reflex Suite 81693 | -3/Protoforge | Spotted Decapitator 81693 | -3/Protoforge | Spotted Decapitator 81693 | -3/Protoforge | Spotted Decapitator 81733 | -3/Protoforge | Spotted Immortal 81733 | -3/Protoforge | Spotted Immortal 81740 | -3/Protoforge | Spotted V256-b 81761 | -3/Protoforge | Destroyed V256-b 81766 | -3/Protoforge | Destroyed Immortal 81770 | -3/Protoforge | Spotted V980-h 81770 | -3/Protoforge | Spotted V174-i 81780 | -3/Protoforge | Spotted V366-h 81881 | -3/Protoforge | Found Faulty Cep. Combat Aerolev Unit 81883 | -3/Protoforge | Found Faulty Cep. Combat Aerolev Unit 81898 | -3/Protoforge | Found Faulty Cep. Combat Aerolev Unit 81943 | -3/Protoforge | Destroyed Immortal 82000 | -3/Protoforge | Build established: Mutant 82025 | -3/Protoforge | System corruption reached 30% 82068 | -3/Protoforge | Found Faulty Cep. EMP Blanket Launcher 82072 | -3/Protoforge | Found Faulty Cep. EMP Blanket Launcher 82076 | -3/Protoforge | Found Cep. Tactical Fusion Warhead 82084 | -3/Protoforge | Found Cep. Smart ZDS 82085 | -3/Protoforge | Found Faulty Cep. Rapid Grenade Launcher 82094 | -3/Protoforge | Found Cep. Rapid Grenade Launcher 82106 | -3/Protoforge | Spotted AP7-3 82106 | -3/Protoforge | Spotted AP7-3 82139 | -3/Protoforge | Destroyed AP7-3 82157 | -3/Protoforge | Destroyed AP7-3 82202 | -3/Protoforge | Found Faulty Cep. Core Analysis Suite 82206 | -3/Protoforge | Found Faulty Cep. Core Analysis Suite 82209 | -3/Protoforge | Found Faulty Cep. Thermoelectric Network 82210 | -3/Protoforge | Found Cep. Dimensional Manipulator 82213 | -3/Protoforge | Found Faulty Cep. Thermoelectric Network 82218 | -3/Protoforge | Found Cep. Impact Drone Bay 82222 | -3/Protoforge | Found Cld. Directed Potential Cannon 82515 | -3/Protoforge | Destroyed 8 combat bots 82603 | -3/Protoforge | Destroyed 7 combat bots 82733 | -3/Protoforge | Destroyed 8 combat bots 82758 | -3/Protoforge | Destroyed V366-h 82764 | -3/Protoforge | Destroyed V980-h 82767 | -3/Protoforge | Found Prototype Processor 82767 | -3/Protoforge | Identified Exp. Target Analyzer 82784 | -3/Protoforge | Found Prototype Device 82784 | -3/Protoforge | Identified Exp. Shield Generator 82785 | -3/Protoforge | Destroyed 7 combat bots 82803 | -3/Protoforge | Found Prototype Energy Gun 82803 | -3/Protoforge | Identified Enh. Gamma Rifle 82907 | -3/Protoforge | Destroyed V174-i 82925 | -3/Protoforge | Found Cep. Biometal Exoskeleton 83021 | -3/Protoforge | Destroyed 8 combat bots 83064 | -3/Protoforge | Warped through subspace to slip node 83087 | -3/Protoforge | Found Cep. Zero-point Core 83176 | -3/Protoforge | Destroyed Immortal 83190 | -3/Protoforge | Found Exp. System Purifier 83281 | -3/Protoforge | Spotted Hotshot 83286 | -3/Protoforge | Destroyed Hotshot 83291 | -3/Protoforge | Spotted Hotshot 83316 | -3/Protoforge | Spotted Hotshot 83318 | -3/Protoforge | Spotted Hotshot 83318 | -3/Protoforge | Spotted Hotshot 83319 | -3/Protoforge | Spotted Hotshot 83319 | -3/Protoforge | Spotted Hotshot 83320 | -3/Protoforge | Spotted Hotshot 83321 | -3/Protoforge | Spotted Hotshot 83322 | -3/Protoforge | Spotted Decapitator 83322 | -3/Protoforge | Spotted Decapitator 83322 | -3/Protoforge | Spotted Decapitator 83323 | -3/Protoforge | Spotted Decapitator 83337 | -3/Protoforge | Discovered exit to Research (range 10) 83346 | -3/Protoforge | Entered Research 83346 | -2/Research | Evolved 2 slots: Power x2 83547 | -2/Research | Spotted B-90 Cyclops 83596 | -2/Research | First assault squad dispatched 83664 | -2/Research | Unchained authorized (6S-H0T) 83664 | -2/Research | High security lockdown imminent 83685 | -2/Research | Destroyed 8 combat bots 83744 | -2/Research | High security lockdown engaged 83803 | -2/Research | Destroyed 7 combat bots 83874 | -2/Research | Build established: Generator-Assassin 83968 | -2/Research | Destroyed 20 combat bots 83976 | -2/Research | Found Prototype Device 83976 | -2/Research | Identified Exp. Thermal Shield 84087 | -2/Research | Spotted Striker 84087 | -2/Research | Spotted Striker 84090 | -2/Research | Destroyed Striker 84100 | -2/Research | Destroyed Striker 84132 | -2/Research | System corruption reached 10% 84168 | -2/Research | Lost 3 parts (2p1u) 84191 | -2/Research | Destroyed 35 combat bots 84264 | -2/Research | Spotted Executioner 84268 | -2/Research | Destroyed 9 combat bots 84275 | -2/Research | Destroyed Executioner 84302 | -2/Research | Destroyed 11 combat bots 84399 | -2/Research | Spotted Striker 84403 | -2/Research | Destroyed Striker 84446 | -2/Research | Discovered new exit (range 21) 84476 | -2/Research | Found Prototype Processor 84476 | -2/Research | Identified Exp. Melee Analysis Suite 84479 | -2/Research | Destroyed 11 combat bots 84544 | -2/Research | Spotted Executioner 84544 | -2/Research | Spotted Executioner 84553 | -2/Research | Entered Testing 84598 | -2/Testing | Protovariant out of control (PD-WE7I8MI9ME) 84598 | -2/Testing | Spotted PD-WE7I8MI9ME 84713 | -2/Testing | Found Prototype Ballistic Gun 84713 | -2/Testing | Identified Hyp. Multirail 84749 | -2/Testing | Spotted Investigator 84753 | -2/Testing | Build established: Generator-Tank 84758 | -2/Testing | Destroyed Investigator 84800 | -2/Testing | High security lockdown imminent 84810 | -2/Testing | Found Prototype Device 84810 | -2/Testing | Identified Exp. Shock Absorption System 84880 | -2/Testing | High security lockdown engaged 84984 | -2/Testing | Found Prototype Energy Cannon 84984 | -2/Testing | Identified Hpw. Disruptor Cannon 85028 | -2/Testing | Spotted PL-BJQ7G9XZZ2 85061 | -2/Testing | Destroyed PL-BJQ7G9XZZ2 85130 | -2/Testing | Spotted Investigator 85138 | -2/Testing | Destroyed Investigator 85173 | -2/Testing | Destroyed 18 combat bots 85217 | -2/Testing | Found Prototype Energy Cannon 85217 | -2/Testing | Identified Cld. Nova Cannon 85275 | -2/Testing | Discovered new exit (range 8) 85290 | -2/Testing | Entered Access 85290 | -1/Access | Evolved 2 slots: Utility x2 85311 | -1/Access | Destroyed 13 combat bots 85316 | -1/Access | Lost 3 parts (2p1u) 85540 | -1/Access | First assault squad dispatched 85639 | -1/Access | Spotted B-99 Colossus 85644 | -1/Access | Spotted B-99 Colossus 85666 | -1/Access | Spotted B-99 Colossus 85671 | -1/Access | Crushed by falling debris 85701 | -1/Access | Destroyed B-99 Colossus 86018 | -1/Access | High security lockdown imminent 86098 | -1/Access | High security lockdown engaged 86199 | -1/Access | Discovered new exit (range 8) 86364 | -1/Access | Destroyed 9 combat bots 86457 | -1/Access | Spotted Investigator 86470 | -1/Access | Destroyed Executioner 86474 | -1/Access | Destroyed Investigator 86497 | -1/Access | Build established: Generator-Gunner 86500 | -1/Access | Destroyed 11 combat bots 86571 | -1/Access | Spotted Striker 86571 | -1/Access | Spotted Striker 86573 | -1/Access | Destroyed Striker 86575 | -1/Access | Destroyed Striker 86578 | -1/Access | Spotted Executioner 86578 | -1/Access | Spotted Striker 86585 | -1/Access | Destroyed Executioner 86587 | -1/Access | Destroyed Striker 86608 | -1/Access | Destroyed 12 combat bots 86764 | -1/Access | Destroyed 8 combat bots 86780 | -1/Access | Destroyed Striker 86821 | -1/Access | Destroyed 11 combat bots 86900 | -1/Access | Spotted Executioner 86905 | -1/Access | Destroyed Executioner 86907 | -1/Access | Destroyed Executioner 86928 | -1/Access | Destroyed 8 combat bots 87204 | -1/Access | Spotted Striker 87210 | -1/Access | Destroyed Striker 87316 | -1/Access | Destroyed Executioner 87317 | -1/Access | Spotted Executioner 87319 | -1/Access | Destroyed Executioner 87330 | -1/Access | Spotted Striker 87332 | -1/Access | Spotted Executioner 87333 | -1/Access | Destroyed Executioner 87334 | -1/Access | Destroyed Striker 87366 | -1/Access | Destroyed 16 combat bots 87552 | -1/Access | Spotted Executioner 87554 | -1/Access | Destroyed Executioner 87656 | -1/Access | Spotted Executioner 87656 | -1/Access | Spotted Striker 87657 | -1/Access | Destroyed Striker 87661 | -1/Access | Destroyed Executioner 87670 | -1/Access | Spotted Striker 87675 | -1/Access | Spotted Striker 87676 | -1/Access | Destroyed Striker 87677 | -1/Access | Destroyed Striker 87683 | -1/Access | Sterilization system engaged 87691 | -1/Access | Spotted Striker 87692 | -1/Access | Spotted Striker 87695 | -1/Access | Spotted Executioner 87695 | -1/Access | Spotted Striker 87698 | -1/Access | Destroyed Striker 87704 | -1/Access | Destroyed Striker 87711 | -1/Access | Destroyed Striker 87712 | -1/Access | Destroyed Executioner 87733 | -1/Access | Destroyed 34 combat bots 87755 | -1/Access | Destroyed Executioner 87756 | -1/Access | Spotted Executioner 87756 | -1/Access | Spotted Striker 87758 | -1/Access | Destroyed Striker 87760 | -1/Access | Destroyed Executioner 87790 | -1/Access | Destroyed 7 combat bots 87845 | -1/Access | Spotted Executioner 87846 | -1/Access | Destroyed Executioner 87983 | -1/Access | Ambient heat levels rising (+10) 88018 | -1/Access | Destroyed Striker 88133 | -1/Access | Ambient heat levels rising (+10) 88283 | -1/Access | Ambient heat levels rising (+10) 88409 | -1/Access | Spotted Striker 88414 | -1/Access | Destroyed Striker 88433 | -1/Access | Ambient heat levels rising (+10) 88439 | -1/Access | Destroyed 7 combat bots 88583 | -1/Access | Ambient heat levels rising (+10) 88733 | -1/Access | Ambient heat levels rising (+10) 88848 | -1/Access | Discovered new exit (range 19) 88883 | -1/Access | Ambient heat levels rising (+10) 89033 | -1/Access | Ambient heat levels rising (+10) 89183 | -1/Access | Ambient heat levels rising (+10) 89242 | -1/Access | Found Prototype Launcher 89242 | -1/Access | Identified Containment Facilitator 89328 | -1/Access | Destroyed B-99 Colossus 89333 | -1/Access | Ambient heat levels rising (+10) 89483 | -1/Access | Ambient heat levels rising (+10) 89633 | -1/Access | Ambient heat levels rising (+10) 89783 | -1/Access | Ambient heat levels rising (+10) 89933 | -1/Access | Ambient heat levels rising (+10) 90083 | -1/Access | Ambient heat levels rising (+10) 90133 | -1/Access | Found Prototype Device 90133 | -1/Access | Identified Exp. Transmission Jammer 90233 | -1/Access | Ambient heat levels rising (+10) 90365 | -1/Access | Found Prototype Device 90365 | -1/Access | Identified Exp. Terrain Scanner 90373 | -1/Access | Found Exp. Terrain Scanner 90383 | -1/Access | Ambient heat levels rising (+10) 90533 | -1/Access | Ambient heat levels rising (+10) 90683 | -1/Access | Ambient heat levels rising (+10) 90833 | -1/Access | Ambient heat levels rising (+10) 90983 | -1/Access | Ambient heat levels rising (+10) 91133 | -1/Access | Ambient heat levels rising (+10) 91273 | -1/Access | Found Prototype Launcher 91273 | -1/Access | Identified Tactical Quantum Warhead 91283 | -1/Access | Ambient heat levels rising (+10) 91433 | -1/Access | Ambient heat levels rising (+10) 91583 | -1/Access | Ambient heat levels rising (+10) 91733 | -1/Access | Ambient heat levels rising (+10) 91883 | -1/Access | Ambient heat levels rising (+10) 92033 | -1/Access | Ambient heat levels rising (+10) 92183 | -1/Access | Ambient heat levels rising (+10) 92333 | -1/Access | Ambient heat levels rising (+10) 92483 | -1/Access | Ambient heat levels rising (+10) 92633 | -1/Access | Ambient heat levels rising (+10) 92783 | -1/Access | Ambient heat levels rising (+10) 92933 | -1/Access | Ambient heat levels rising (+10) 93083 | -1/Access | Ambient heat levels rising (+10) 93233 | -1/Access | Ambient heat levels rising (+10) 93383 | -1/Access | Ambient heat levels rising (+10) 93533 | -1/Access | Ambient heat levels rising (+10) 93683 | -1/Access | Ambient heat levels rising (+10) 93833 | -1/Access | Ambient heat levels rising (+10) 93983 | -1/Access | Ambient heat levels rising (+10) 94133 | -1/Access | Ambient heat levels rising (+10) 94283 | -1/Access | Ambient heat levels rising (+10) 94433 | -1/Access | Ambient heat levels rising (+10) 94583 | -1/Access | Ambient heat levels rising (+10) 94733 | -1/Access | Ambient heat levels rising (+10) 94883 | -1/Access | Ambient heat levels rising (+10) 95033 | -1/Access | Ambient heat levels rising (+10) 95183 | -1/Access | Ambient heat levels rising (+10) 95333 | -1/Access | Ambient heat levels rising (+10) 95483 | -1/Access | Ambient heat levels rising (+10) 95633 | -1/Access | Ambient heat levels rising (+10) 95783 | -1/Access | Ambient heat levels rising (+10) 95933 | -1/Access | Ambient heat levels rising (+10) 96083 | -1/Access | Ambient heat levels rising (+10) 96233 | -1/Access | Ambient heat levels rising (+10) 96383 | -1/Access | Ambient heat levels rising (+10) 96533 | -1/Access | Ambient heat levels rising (+10) 96683 | -1/Access | Ambient heat levels rising (+10) 96833 | -1/Access | Ambient heat levels rising (+10) 96983 | -1/Access | Ambient heat levels rising (+10) 97133 | -1/Access | Ambient heat levels rising (+10) 97283 | -1/Access | Ambient heat levels rising (+10) 97433 | -1/Access | Ambient heat levels rising (+10) 97583 | -1/Access | Ambient heat levels rising (+10) 97733 | -1/Access | Ambient heat levels rising (+10) 97883 | -1/Access | Ambient heat levels rising (+10) 98033 | -1/Access | Ambient heat levels rising (+10) 98183 | -1/Access | Ambient heat levels rising (+10) 98333 | -1/Access | Ambient heat levels rising (+10) 98483 | -1/Access | Ambient heat levels rising (+10) 98633 | -1/Access | Ambient heat levels rising (+10) 98783 | -1/Access | Ambient heat levels rising (+10) 98933 | -1/Access | Ambient heat levels rising (+10) 99083 | -1/Access | Ambient heat levels rising (+10) 99233 | -1/Access | Ambient heat levels rising (+10) 99383 | -1/Access | Ambient heat levels rising (+10) 99533 | -1/Access | Ambient heat levels rising (+10) 99683 | -1/Access | Ambient heat levels rising (+10) 99833 | -1/Access | Ambient heat levels rising (+10) 99983 | -1/Access | Ambient heat levels rising (+10) 100133 | -1/Access | Ambient heat levels rising (+10) 100283 | -1/Access | Ambient heat levels rising (+10) 100433 | -1/Access | Ambient heat levels rising (+10) 100583 | -1/Access | Ambient heat levels rising (+10) 100733 | -1/Access | Ambient heat levels rising (+10) 100883 | -1/Access | Ambient heat levels rising (+10) 101033 | -1/Access | Ambient heat levels rising (+10) 101183 | -1/Access | Ambient heat levels rising (+10) 101333 | -1/Access | Ambient heat levels rising (+10) 101483 | -1/Access | Ambient heat levels rising (+10) 101633 | -1/Access | Ambient heat levels rising (+10) 101783 | -1/Access | Ambient heat levels rising (+10) 101933 | -1/Access | Ambient heat levels rising (+10) 102083 | -1/Access | Ambient heat levels rising (+10) 102233 | -1/Access | Ambient heat levels rising (+10) 102383 | -1/Access | Ambient heat levels rising (+10) 102533 | -1/Access | Ambient heat levels rising (+10) 102683 | -1/Access | Ambient heat levels rising (+10) 102833 | -1/Access | Ambient heat levels rising (+10) 102983 | -1/Access | Ambient heat levels rising (+10) 103133 | -1/Access | Ambient heat levels rising (+10) 103277 | -1/Access | Entered Command 103527 | -1/Command | First assault squad dispatched 103593 | -1/Command | Spotted M Guard 103593 | -1/Command | Spotted M Guard 103645 | -1/Command | Spotted Combat Programmer 103645 | -1/Command | Spotted Combat Programmer 103651 | -1/Command | Destroyed 12 combat bots 103689 | -1/Command | High security lockdown imminent 103734 | -1/Command | Destroyed 7 combat bots 103769 | -1/Command | High security lockdown engaged 103769 | -1/Command | Destroyed Combat Programmer 103771 | -1/Command | Destroyed Combat Programmer 103781 | -1/Command | Destroyed M Guard 103782 | -1/Command | Destroyed M Guard 103782 | -1/Command | All MAIN.C guards destroyed 103895 | -1/Command | System corruption reached 10% 103920 | -1/Command | Destroyed 9 combat bots 103963 | -1/Command | Destroyed Executioner 103973 | -1/Command | Spotted Investigator 103978 | -1/Command | Destroyed Investigator 104005 | -1/Command | Destroyed 14 combat bots 104126 | -1/Command | Destroyed Investigator 104135 | -1/Command | Destroyed Striker 104156 | -1/Command | Destroyed 15 combat bots 104329 | -1/Command | Spotted Striker 104329 | -1/Command | Spotted Executioner 104332 | -1/Command | Destroyed Striker 104334 | -1/Command | Destroyed Executioner 104337 | -1/Command | Destroyed Executioner 104343 | -1/Command | Destroyed Executioner 104344 | -1/Command | Destroyed Striker 104376 | -1/Command | Destroyed 22 combat bots 104393 | -1/Command | Destroyed Executioner 104393 | -1/Command | Destroyed Striker 104399 | -1/Command | Spotted Striker 104399 | -1/Command | Spotted Striker 104401 | -1/Command | Destroyed Striker 104407 | -1/Command | Destroyed Striker 104576 | -1/Command | Spotted Striker 104582 | -1/Command | Destroyed Striker 104587 | -1/Command | Spotted Executioner 104587 | -1/Command | Spotted Executioner 104587 | -1/Command | Spotted Executioner 104590 | -1/Command | Destroyed Executioner 104590 | -1/Command | Spotted Executioner 104599 | -1/Command | Destroyed Executioner 104599 | -1/Command | Destroyed Executioner 104605 | -1/Command | Destroyed Executioner 104642 | -1/Command | Destroyed 44 combat bots 104714 | -1/Command | Found Corrupted Hellfire Missile Launcher 104716 | -1/Command | Found Corrupted Prototype Reactor 104718 | -1/Command | Found Corrupted Prototype Launcher 104837 | -1/Command | Destroyed 90 combat bots 104950 | -1/Command | Destroyed 84 combat bots 104962 | -1/Command | Build established: Generator-Mutant 105279 | -1/Command | Destroyed 84 combat bots 105440 | -1/Command | Destroyed 78 combat bots 105510 | -1/Command | Destroyed 16 combat bots 105635 | -1/Command | Build established: Generator-Gunner 105968 | -1/Command | Build established: Generator-Mutant 106981 | -1/Command | Build established: Generator-Gunner 107591 | -1/Command | Phase Generator disabled 107971 | -1/Command | Build established: Generator-Mutant 108945 | -1/Command | Spotted Striker 109021 | -1/Command | Build established: Generator-Gunner 109330 | -1/Command | Spotted Alpha 7 109932 | -1/Command | Spotted Alpha 7 110184 | -1/Command | Destroyed Striker 110187 | -1/Command | Spotted Executioner 110194 | -1/Command | Spotted Executioner 110196 | -1/Command | Destroyed Executioner 110201 | -1/Command | Destroyed Executioner 110212 | -1/Command | Destroyed Alpha 7 110213 | -1/Command | Destroyed Alpha 7 110776 | -1/Command | Spotted Striker 110789 | -1/Command | Destroyed Striker 110793 | -1/Command | Spotted Executioner 110828 | -1/Command | Destroyed Executioner 110866 | -1/Command | Spotted Executioner 110884 | -1/Command | Spotted B-99 Colossus 110888 | -1/Command | Destroyed Executioner 110914 | -1/Command | Discovered new exit (range 22) 110971 | -1/Command | Destroyed B-99 Colossus 110971 | -1/Command | Spotted B-99 Colossus 111159 | -1/Command | Destroyed B-99 Colossus 112134 | -1/Command | Found Corrupted Prototype Ballistic Gun 112680 | -1/Command | Found Exp. Core Analyzer 115341 | -1/Command | Found Adv. Kinecellerator 115447 | -1/Command | Met MAIN.C 115471 | -1/Command | 0b10 Conduit disabled 115504 | -1/Command | Destroyed MAIN.C Shell 115507 | -1/Command | MAIN.C activated Command garrisons 115539 | -1/Command | Destroyed MAIN.C 115557 | -1/Command | Identified Multirail 115557 | -1/Command | Discovered new exit (range 36) 115557 | -1/Command | Discovered new exit (range 89) 115557 | -1/Command | Extracted map data and part IDs from MAIN.C's data core 115613 | -1/Command | Spotted B-99 Colossus 115635 | -1/Command | Destroyed B-99 Colossus 115788 | -1/Command | Build established: Scavenger-Gunner 115969 | -1/Command | Found Exp. System Purifier 115972 | -1/Command | Found Exp. Phase Shifter 116047 | -1/Command | Found Vortex Chain Reactor 116051 | -1/Command | Found Zero-point Reactor 116054 | -1/Command | Found Exp. Force Field 116219 | -1/Command | Found Perforator 116325 | -1/Command | Build established: Generator-Gunner 116390 | -1/Command | Found Multirail 116476 | -1/Command | Found Singularity Reactor 116696 | -1/Command | Found Centrium Heavy Armor Plating 116698 | -1/Command | Found Centrium Heavy Armor Plating 118246 | -1/Command | Found Zero-point Reactor 118718 | -1/Command | Found Corrupted Multirail 118729 | -1/Command | Found Corrupted Multirail 118738 | -1/Command | Found Corrupted Multirail 119744 | -1/Command | Found Corrupted Zero-point Reactor 125696 | -1/Command | Found Hpw. Disruptor Cannon 129334 | -1/Command | Used Subatomic Replicator to replicate Cep. Impact Drone Bay 129481 | -1/Command | Warped through subspace to slip node 129481 | -1/Command | Discovered new exit (range 4) 129494 | -1/Command | Entered Access_0 129498 | -1/Access_0 | Met Architect 129512 | -1/Access_0 | Destroyed A8 129538 | -1/Access_0 | Architect warped through subspace 129585 | -1/Access_0 | Architect warped through subspace 129620 | -1/Access_0 | Architect warped through subspace 129652 | -1/Access_0 | Subspace Access Node disabled 129658 | -1/Access_0 | Architect warped through subspace 129670 | -1/Access_0 | Found Exp. Weapon Cycler 129690 | -1/Access_0 | Architect warped through subspace 129704 | -1/Access_0 | Found Exp. Phase Shifter 129715 | -1/Access_0 | A6 warped into view 129722 | -1/Access_0 | Architect warped through subspace 129725 | -1/Access_0 | Allies destroyed A6 129776 | -1/Access_0 | Architect warped through subspace 129809 | -1/Access_0 | Architect warped through subspace 129849 | -1/Access_0 | Subspace Access Node disabled 129853 | -1/Access_0 | Architect warped through subspace 129875 | -1/Access_0 | Architect warped through subspace 129917 | -1/Access_0 | Architect warped through subspace 129925 | -1/Access_0 | A5 warped into view 129933 | -1/Access_0 | Destroyed 7 combat bots 129934 | -1/Access_0 | Allies destroyed A5 129961 | -1/Access_0 | Architect warped through subspace 129986 | -1/Access_0 | Architect warped through subspace 130054 | -1/Access_0 | Architect warped through subspace 130064 | -1/Access_0 | Core integrity fell below 50% 130073 | -1/Access_0 | Destroyed A2 130096 | -1/Access_0 | Architect warped through subspace 130103 | -1/Access_0 | Lost 6 parts (1n5w) 130107 | -1/Access_0 | Extracted Singularity Gate Test 138-C access codes from A2's data core 130125 | -1/Access_0 | Architect warped through subspace 130156 | -1/Access_0 | Subspace Access Node disabled 130179 | -1/Access_0 | Architect warped through subspace 130195 | -1/Access_0 | Singularity Gate disabled 130216 | -1/Access_0 | Architect warped through subspace 130261 | -1/Access_0 | Architect warped through subspace 130324 | -1/Access_0 | Architect warped through subspace 130334 | -1/Access_0 | Build established: Generator-Mutant 130359 | -1/Access_0 | Architect warped through subspace 130382 | -1/Access_0 | Architect warped through subspace 130410 | -1/Access_0 | Architect warped through subspace 130445 | -1/Access_0 | Architect warped through subspace 130452 | -1/Access_0 | Subspace Access Node disabled 130473 | -1/Access_0 | A4 warped into view 130511 | -1/Access_0 | Destroyed Architect 130532 | -1/Access_0 | Destroyed A4 130538 | -1/Access_0 | Lost 3 parts (1p1u1w) 130541 | -1/Access_0 | Extracted unknown sensor trigger ID from Architect's data core 130543 | -1/Access_0 | Found Hpw. Transdimensional Reconstructor 130583 | -1/Access_0 | Found Integrated Dissipator 130583 | -1/Access_0 | Installed Integrated Dissipator, increased core heat dissipation (+20) 130620 | -1/Access_0 | Found Exp. Thermal Shield 130688 | -1/Access_0 | Found Com. Tesla Bomb Launcher 130828 | -1/Access_0 | Build established: Scavenger-Gunner 130863 | -1/Access_0 | Found Prototype Device 130863 | -1/Access_0 | Identified Desublimator 130866 | -1/Access_0 | Found Desublimator 131207 | -1/Access_0 | Found Core Expander 131207 | -1/Access_0 | Installed Core Expander, added new Propulsion slot 131506 | -1/Access_0 | Found Sigix Corpse 131697 | -1/Access_0 | Found Integrated Mediator 131697 | -1/Access_0 | Installed Integrated Mediator, increased core attachment efficiency 131787 | -1/Access_0 | A3 warped into view 131811 | -1/Access_0 | Destroyed A3 131819 | -1/Access_0 | Found Prototype Ballistic Gun 131819 | -1/Access_0 | Identified A3's Sniper Rifle 132180 | -1/Access_0 | Found Hpw. Transdimensional Reconstructor 133066 | -1/Access_0 | Crushed by falling debris 133304 | -1/Access_0 | Build established: Scavenger-Tank 133659 | -1/Access_0 | Found Quantum Router 133664 | -1/Access_0 | Found Quantum Router 133951 | -1/Access_0 | Build established: Scavenger-Gunner 133989 | -1/Access_0 | Singularity Gate disabled 136107 | -1/Access_0 | Warped through subspace to slip node 136107 | -1/Access_0 | Discovered new exit (range 8) 136109 | -1/Access_0 | Warped through subspace to slip node 136207 | *** | Establishing 0b11! Last Messages --------------- 35925_ System corrupted: Heat flow error (+293). 35925_ The unstable cave ceiling collapses. 35987_ System corrupted: Energy discharge (-247). 36023_ System corrupted: Heat flow error (+297). 36026_ The unstable cave ceiling collapses. 36108_ Warped through subspace, drawn to slip node. 36108_ EXIT=FOUND 36110_ Warped through subspace, drawn to slip node. 36122_ Dimensional Slip Node implodes. 36124_ The unstable cave ceiling collapses. 36130_ System corrupted: Substantial component data lost. 36130_ The unstable cave ceiling collapses. 36149_ SSEWH80Q4VRZH6AVIFGJMTL 36149_ The unstable cave ceiling collapses. 36188_ HV Slug penetrates Earth. 36189_ The unstable cave ceiling collapses. Map ----- +----------------------------------------------------+ | | | | | | | | | | | | | | | | | | | | | | | | | | | | | | | | | ?????????????????????????????????????????????????? | | ?????????????????????????????????????????????????? | | ?????????????????????????????????????????????????? | | ?????????????????????????????????????????????????? | | ?????????????????????????????????????????????????? | | ?????????????????????????????????????????????????? | | ????????????????????????###??????????????????????? | | ???????????????????????## ##?????????????????????? | | ???????????????????????# #?????????????????????? | | ???????????????????????# @ #?????????????????????? | | ?????????????????????### #?????????????????????? | | ???????????????????#### ###???????????????????? | | ???????????????????#### ####???????????????????? | | ??????????????????### ####????????????????? | | ??????????????????## # ##???????????????? | | ?????????????????### ##??????????????? | | ?????????????????# # # #??????????????? | | ?????????????????## # #????????????? | | ?????????????????### ## # ##????????????? | | ????????????????# # # # ## #?????????????? | | ???????????????# ## # # # # #?????????????? | | ??????????????# # # # #????????????? | | ??????????????# # # # ### # ????????????? | | ??????????????# # # ## # # #???????????? | | ??????????????# # # # # # ?????????????? | | ??????????????# # # # # ?????????????? | | ??????????????## # # ##?????????????? | | ???????????????# # # # #?????????????? | | ??????????????? # # #? # #?????????????? | | ?????????????? ? ## # ? #?????????????? | | ??????????????????? ? ? ???? ???????????????? | | ??????????????????? ? ? ????????????????????? | | ????????????????????? ? ? ????????????????????? | | ???????????????????????#? ??????????????????????? | +----------------------------------------------------+ Best States ------------- Heat Dissipation 150 Energy Generation 123 Energy Capacity 2290 Matter Stores 428 Matter Capacity 800 Sight Range 23 Robot Scan Range 18 Terrain Scan Range 30 Terrain Scan Density 210 ECM Strength 2 Jamming Range 22 Power Amplification 30 Base Temperature (-) 200 Armor Coverage 825 Resistance: KI 30 Resistance: TH 75 Resistance: EX 75 Resistance: EM 75 Core Shielding 20 Utility Shielding 90 Weapon Shielding 90 Projectile Deflection 15 Weapon Cycling 30 Phase Shifting 20 Evasion (%) 104 Targeting Accuracy 30 Melee Accuracy 8 Launcher Accuracy 40 Core Analysis 15 Recoil Reduction 7 Matter Filtering 50 Particle Charging 25 Kinecelleration 66 Salvage Targeting 4 Offensive Hacking 14 Defensive Hacking 50 Authchip Count 1 Trap Extractor Capacity 6 Item Schematics ----------------- Hcp. Storage Unit | -10/Materials | Hacked Exp. Heat Sink | -3/Research | Scanalyzed Cmb. Antigrav System | -3/Research | Scanalyzed Exp. Matter Compressor | -3/Protoforge | Archive Adv. EM Shield | -3/Protoforge | Archive Exp. Signal Interpreter | -3/Protoforge | Archive Centrium Medium Armor Plating | -3/Protoforge | Archive Exp. Targeting Computer | -3/Protoforge | Archive Exp. EM Disruption Field | -3/Protoforge | Archive Mni. Smartbomb Launcher | -3/Protoforge | Archive Proton Burst Cannon | -3/Protoforge | Archive Impact Mace | -3/Protoforge | Archive Robot Schematics ------------------ G-67 Veteran | -3/Protoforge | Archive M-36 Artificer | -3/Protoforge | Archive B-74 Champion | -3/Protoforge | Archive H-77 Assassin | -3/Protoforge | Archive Fabricated ------------ Hcp. Storage Unit | x1 | -4/Armory | Authchip Repaired ---------- Grenade Launcher | 1% | -9/Materials Rnf. Fission Core | 25% | -7/Storage Helical Railgun | 56% | -3/Research Studied --------- Hvy. Assault Rifle | -9/Materials | Hacked Lgt. Assault Rifle | -9/Materials | Hacked Lgt. Treads | -9/Materials | Hacked Cesium-ion Thruster | -4/Factory | Hacked Hvy. Phase Cannon | -4/Factory | Hacked Cmb. Linear Gravjet | -3/Research | Hacked Cmb. Antigrav System | -3/Quarantine | Hacked Lgt. Quantum Reactor | -2/Testing | Hacked Alien Tech Used ----------------- High-powered Transdimensional Reconstructor Core Stripper Sigix Broadsword Core Cannon Dimensional Node Initializer Subatomic Replicator Transdimensional Reconstructor Integrated Dissipator Core Expander Integrated Mediator Achievements -------------- Bob, First Of His Name Not Immortal After All Power Plant Serial Killer Challenges ------------ None Game ------ Seed StasisRainbowSpear Manual? 0 Play Time 20:03:19 Cumulative 473.0 hours Start 2025.11.18 @ 16:28:11 End 2025.11.24 @ 22:47:38 Sessions 23 Manual Loads 0 Difficulty Rogue Special Mode None Game No. 189 Rogue 181 Adventurer 8 Explorer 0 Win Type 1 Total 32 Types 14/4/4/3/0/1/2/1/2/1 Lore% 91 Gallery% 91 Achievement% 83 Wizard Run 0 Options --------- Layout 2 ASCII 0 Keyboard 1 Movement Numpad Keybinds 1 Fullscreen 2 Font 24/Smallcaps Map View 50x44 Zoom Use 0% Tactical HUD 1 Map Filters NONE Filters NONE Steam 1 RUN: f358177b-b2e9-46de-8088-0699ab21eda2